{"text_format":"1","workbook":"xlsx","n_sheets":6,"sheets":["Notes","Summary","Region (Local Office)","Trusts","Sites","BS"],"not_rendered":{"charts":0,"images":0,"macros":1,"external_links":0,"defined_names":5,"comments":0,"pivot_tables":0},"unopened":[],"bounds":{"document_bytes":16777216,"sheet_cells":100000,"rows_first":2000,"rows_last":500,"rows_between":2000,"halvings":0,"cell_chars":16384,"cell_head_chars":4096},"cells_cut":0,"cells_raw":0,"read":"whole","date_system":"1900"}

{"sheet":"Notes","index":0,"n_rows":2,"n_cols":8,"rows_kept":2,"cut":false,"hidden":false,"merged":[[1,1,1,4]]}
[]
[null,"A&E Friends and Family Test (FFT) data - January 2021",null,null,null,null,null,"  Show data for:"]

{"sheet":"Summary","index":1,"n_rows":7,"n_cols":10,"rows_kept":7,"cut":false,"hidden":false,"merged":[[2,1,3,1],[2,4,2,5],[2,6,2,7],[2,8,2,9]]}
[]
[]
[null,"FFT","Number of organisations submitting","Total responses to date","Responses",null,"Percentage Positive",null,"Percentage Negative"]
[null,null,"2021-01-01","2021-01-01","2021-01-01","2020-12-27","2021-01-01","2020-12-27","2021-01-01","2020-12-27"]
[null,"A&E Total",120,10964942,72633,78624,0.8801784312915617,0.86754680504680504,7.0353695978412012E-2,7.841117216117216E-2]
[null,"Acute Type 1&2","NA",10396594,67993,73685,0.8813554336475814,0.86645857365813939,6.9315958995778984E-2,7.8645585940150642E-2]
[null,"WiCs & MIUs",21,568348,4640,4939,0.86293103448275865,0.88378214213403528,8.5560344827586204E-2,7.4913950192346632E-2]

{"sheet":"Region (Local Office)","index":2,"n_rows":48,"n_cols":12,"rows_kept":48,"cut":false,"hidden":false,"merged":[[2,6,2,11],[2,0,3,0],[2,1,3,1],[2,2,3,2],[2,3,3,3],[2,4,3,4],[2,5,3,5]]}
[]
[]
["STP Code","STP","Total Responses","Total Eligible","Percentage Positive","Percentage Negative","Breakdown of Responses"]
[null,null,null,null,null,null,"Very Good","Good","Neither Good nor Poor","Poor","Very Poor","Don't Know"]
[null,"England",72633,665918,0.8801784312915617,7.0353695978412012E-2,53073,10857,2737,1955,3155,856]
[null,"Selection (excluding suppressed data)",{"$f":"SUBTOTAL(9,C7:C60)","v":72633},{"$f":"SUBTOTAL(9,D7:D60)","v":665918},{"$f":"IFERROR((G6+H6)/C6, \"-\")","v":0.87993061005328155},{"$f":"IFERROR((J6+K6)/C6, \"-\")","v":7.0312392438698662E-2},{"$f":"SUBTOTAL(9,G7:G60)","v":53055},10857,2737,1954,3153,856]
["QE1","HEALTHIER LANCASHIRE AND SOUTH CUMBRIA",2306,16102,0.87944492627927151,7.3720728534258456E-2,1693,335,96,77,93,12]
["QF7","SOUTH YORKSHIRE AND BASSETLAW STP",1874,28740,0.86819637139807893,8.057630736392743E-2,1381,246,78,71,80,18]
["QGH","HEREFORDSHIRE AND WORCESTERSHIRE STP",1262,6393,0.8922345483359746,6.8145800316957217E-2,928,198,45,26,60,5]
["QH8","MID AND SOUTH ESSEX STP",1269,11623,0.87312844759653274,7.2498029944838449E-2,923,185,43,35,57,26]
["QHG","BEDFORDSHIRE, LUTON AND MILTON KEYNES STP",717,15058,0.87447698744769875,6.1366806136680614E-2,491,136,42,17,27,4]
["QHL","BIRMINGHAM AND SOLIHULL STP",2008,15775,0.83964143426294824,9.5119521912350596E-2,1355,331,106,65,126,25]
["QHM","CUMBRIA AND NORTH EAST STP",1254,44697,0.91626794258373201,5.4226475279106859E-2,976,173,32,29,39,5]
["QJ2","JOINED UP CARE DERBYSHIRE STP",898,15980,0.89643652561247211,5.2338530066815145E-2,628,177,46,23,24,0]
["QJG","SUFFOLK AND NORTH EAST ESSEX ICS",1060,10638,0.90754716981132078,4.9056603773584909E-2,831,131,35,26,26,11]
["QJK","DEVON STP",461,16491,0.98915401301518435,2.1691973969631237E-3,427,29,3,1,0,1]
["QJM","LINCOLNSHIRE STP",892,3412,0.8688340807174888,7.2869955156950675E-2,575,200,47,32,33,5]
["QK1","LEICESTER, LEICESTERSHIRE AND RUTLAND STP",1467,10485,0.92978868438991136,4.2944785276073622E-2,1097,267,35,21,42,5]
["QKK","OUR HEALTHIER SOUTH EAST LONDON STP",3683,26042,0.85691012761335872,6.543578604398588E-2,2532,624,184,76,165,102]
["QKS","KENT AND MEDWAY STP",1961,23539,0.88730239673635902,6.8332483426823049E-2,1452,288,78,57,77,9]
["QM7","HERTFORDSHIRE AND WEST ESSEX STP",50,18141,0.94,0.02,35,12,2,1,0,0]
["QMF","EAST LONDON HEALTH & CARE PARTNERSHIP (STP)",2027,20528,0.79033053774050321,0.12284163788850518,1211,391,91,80,169,85]
["QMJ","NORTH LONDON PARTNERS IN HEALTH & CARE (STP)",3480,15295,0.93189655172413788,3.4770114942528733E-2,2826,417,65,35,86,51]
["QMM","NORFOLK AND WAVENEY HEALTH & CARE PARTNERSHIP (STP)",19,10611,0.89473684210526316,0.10526315789473684,"*","*","*","*","*","*"]
["QNC","STAFFORDSHIRE & STOKE ON TRENT STP",3147,8646,0.72386399745789642,0.17699396250397204,1935,343,200,158,399,112]
["QNQ","FRIMLEY HEALTH & CARE (STP)",1710,14446,0.91754385964912277,5.0877192982456139E-2,1302,267,49,33,54,5]
["QNX","SUSSEX HEALTH AND CARE PARTNERSHIP",1169,12484,0.91017964071856283,4.5337895637296836E-2,907,157,26,20,33,26]
["QOC","SHROPSHIRE AND TELFORD AND WREKIN STP",790,7813,0.93544303797468353,3.9240506329113925E-2,550,189,19,22,9,1]
["QOP","GREATER MANCHESTER HEALTH & SOCIAL CARE PARTNERSHIP",4548,57865,0.88368513632365875,7.2999120492524189E-2,3416,603,157,131,201,40]
["QOQ","HUMBER, COAST AND VALE STP",2894,18699,0.85452660677263304,7.3600552868002767E-2,2030,443,150,90,123,58]
["QOX","BATH AND NORTH EAST SOMERSET, SWINDON AND WILTSHIRE STP",302,5859,0.89735099337748347,6.2913907284768214E-2,217,54,12,6,13,0]
["QPM","NORTHAMPTONSHIRE STP",1205,9931,0.84398340248962656,0.10871369294605809,815,202,50,54,77,7]
["QR1","GLOUCESTERSHIRE STP",803,2947,0.87173100871731013,7.9701120797011207E-2,536,164,34,28,36,5]
["QRL","HAMPSHIRE AND THE ISLE OF WIGHT STP",2249,20731,0.9097376611827479,4.7576700755891509E-2,1798,248,88,52,55,8]
["QRV","NORTH WEST LONDON HEALTH & CARE PARTNERSHIP (STP)",1798,24605,0.88876529477196886,7.4527252502780861E-2,1329,269,59,41,93,7]
["QSL","SOMERSET STP",2,8859,"*","*","*","*","*","*","*","*"]
["QT1","NOTTINGHAM AND NOTTINGHAMSHIRE HEALTH AND CARE STP",949,11232,0.93361433087460488,3.7934668071654375E-2,724,162,26,14,22,1]
["QT6","CORNWALL AND THE ISLES OF SCILLY HEALTH & SOCIAL CARE PARTNERSHIP (STP)",470,3638,0.91276595744680855,6.1702127659574467E-2,350,79,11,15,14,1]
["QU9","BUCKINGHAMSHIRE, OXFORDSHIRE AND BERKSHIRE WEST STP",2291,13414,0.88563945875163685,6.5473592317765172E-2,1648,381,98,57,93,14]
["QUA","THE BLACK COUNTRY AND WEST BIRMINGHAM STP",1206,5344,0.82172470978441126,7.545605306799337E-2,781,210,49,36,55,75]
["QUE","CAMBRIDGESHIRE AND PETERBOROUGH STP",1136,10642,0.91725352112676062,4.401408450704225E-2,899,143,34,25,25,10]
["QUY","BRISTOL, NORTH SOMERSET AND SOUTH GLOUCESTERSHIRE STP",1350,10090,0.88888888888888884,6.6666666666666666E-2,1032,168,42,33,57,18]
["QVV","DORSET STP",1457,8003,0.940974605353466,3.2944406314344546E-2,1144,227,30,24,24,8]
["QWE","SOUTH WEST LONDON HEALTH & CARE PARTNERSHIP (STP)",2729,15624,0.90399413704653719,5.9728838402345184E-2,2090,377,89,57,106,10]
["QWO","WEST YORKSHIRE AND HARROGATE HEALTH & CARE PARTNERSHIP (STP)",3569,32633,0.89548893247408234,6.4724012328383304E-2,2591,605,128,99,132,14]
["QWU","COVENTRY AND WARWICKSHIRE STP",2474,14165,0.88035569927243329,7.0331447049312851E-2,1779,399,98,76,98,24]
["QXU","SURREY HEARTLANDS HEALTH & CARE PARTNERSHIP (STP)",937,6310,0.92529348986125937,5.5496264674493062E-2,744,123,17,28,24,1]
["QYG","CHESHIRE AND MERSEYSIDE STP",6760,32388,0.88476331360946747,7.2337278106508876E-2,5077,904,243,183,306,47]

{"sheet":"Trusts","index":3,"n_rows":126,"n_cols":20,"rows_kept":126,"cut":false,"hidden":false,"merged":[[2,6,3,6],[2,7,2,12],[2,13,2,19],[2,0,3,0],[2,1,3,1],[2,2,3,2],[2,3,3,3],[2,4,3,4],[2,5,3,5]]}
[]
[]
["STP Code","Trust Code","Trust Name","Total Responses","Total Eligible","Percentage Positive","Percentage Negative","Breakdown of Responses",null,null,null,null,null,"Mode of Collection"]
[null,null,null,null,null,null,null,"Very Good","Good","Neither Good nor Poor","Poor","Very Poor","Don't Know","Mode SMS","Mode Electronic Discharge","Mode Paper Discharge","Mode Paper Home","Mode Telephone","Mode Online","Mode Other"]
[null,null,"England",72633,665918,0.8801784312915617,7.0353695978412012E-2,53073,10857,2737,1955,3155,856,57369,1175,2365,220,8739,2484,281]
[null,null,"Selection (excluding suppressed data)",{"$f":"SUBTOTAL(9,D7:D999)","v":72633},{"$f":"SUBTOTAL(9,E7:E999)","v":665918},{"$f":"IFERROR((H6+I6)/D6, \"-\")","v":0.84096760425701811},{"$f":"IFERROR((K6+L6)/D6, \"-\")","v":6.7324769732766104E-2},{"$f":"SUBTOTAL(9,H7:H999)","v":50744},10338,2595,1875,3015,835,54403,1175,2271,216,8586,2470,281]
["QE1","RXR","EAST LANCASHIRE HOSPITALS NHS TRUST",844,8659,0.83293838862559244,0.10308056872037914,551,152,50,38,49,4,815,0,27,0,0,2,0]
["QE1","RXN","LANCASHIRE TEACHING HOSPITALS NHS FOUNDATION TRUST",390,2705,0.89487179487179491,6.9230769230769235E-2,295,54,12,19,8,2,390,0,0,0,0,0,0]
["QE1","RTX","UNIVERSITY HOSPITALS OF MORECAMBE BAY NHS FOUNDATION TRUST",1072,4738,0.91044776119402981,5.2238805970149252E-2,847,129,34,20,36,6,919,0,0,0,153,0,0]
["QF7","RFF","BARNSLEY HOSPITAL NHS FOUNDATION TRUST",196,5894,0.88775510204081631,9.6938775510204078E-2,133,41,3,13,6,0,193,3,0,0,0,0,0]
["QF7","RP5","DONCASTER AND BASSETLAW TEACHING HOSPITALS NHS FOUNDATION TRUST",6,9266,1,0,"*","*","*","*","*","*","*","*","*","*","*","*","*"]
["QF7","RCU","SHEFFIELD CHILDREN'S NHS FOUNDATION TRUST",427,2407,0.87822014051522246,6.7915690866510545E-2,334,41,16,13,16,7,0,0,0,0,424,3,0]
["QF7","RHQ","SHEFFIELD TEACHING HOSPITALS NHS FOUNDATION TRUST",1244,5498,0.86173633440514474,8.1993569131832797E-2,910,162,59,45,57,11,1126,0,0,0,117,1,0]
["QF7","RFR","THE ROTHERHAM NHS FOUNDATION TRUST",1,5675,"*","*","*","*","*","*","*","*","*","*","*","*","*","*","*"]
["QGH","RWP","WORCESTERSHIRE ACUTE HOSPITALS NHS TRUST",1261,6393,0.89214908802537674,6.8199841395717678E-2,"*","*","*","*","*","*","*","*","*","*","*","*","*"]
["QGH","RLQ","WYE VALLEY NHS TRUST",1,0,"*","*","*","*","*","*","*","*","*","*","*","*","*","*","*"]
["QH8","RAJ","MID AND SOUTH ESSEX NHS FOUNDATION TRUST",1269,11623,0.87312844759653274,7.2498029944838449E-2,923,185,43,35,57,26,1267,0,0,0,0,2,0]
["QHG","RC9","BEDFORDSHIRE HOSPITALS NHS FOUNDATION TRUST",671,9528,0.86587183308494786,6.5573770491803282E-2,451,130,42,17,27,4,571,2,0,0,0,94,4]
["QHG","RD8","MILTON KEYNES UNIVERSITY HOSPITAL NHS FOUNDATION TRUST",46,5530,1,0,40,6,0,0,0,0,0,0,0,46,0,0,0]
["QHL","RQ3","BIRMINGHAM WOMEN'S AND CHILDREN'S NHS FOUNDATION TRUST",8,2504,1,0,7,1,0,0,0,0,0,8,0,0,0,0,0]
["QHL","RRK","UNIVERSITY HOSPITALS BIRMINGHAM NHS FOUNDATION TRUST",2000,13271,0.83899999999999997,9.5500000000000002E-2,1348,330,106,65,126,25,2000,0,0,0,0,0,0]
["QHM","RXP","COUNTY DURHAM AND DARLINGTON NHS FOUNDATION TRUST",2,1695,"*","*","*","*","*","*","*","*","*","*","*","*","*","*","*"]
["QHM","RR7","GATESHEAD HEALTH NHS FOUNDATION TRUST",168,3571,0.8571428571428571,0.11904761904761904,125,19,4,5,15,0,168,0,0,0,0,0,0]
["QHM","RNN","NORTH CUMBRIA INTEGRATED CARE NHS FOUNDATION TRUST",1,3224,"*","*","*","*","*","*","*","*","*","*","*","*","*","*","*"]
["QHM","RVW","NORTH TEES AND HARTLEPOOL NHS FOUNDATION TRUST",27,2797,0.85185185185185186,7.407407407407407E-2,18,5,2,1,1,0,27,0,0,0,0,0,0]
["QHM","RTF","NORTHUMBRIA HEALTHCARE NHS FOUNDATION TRUST",587,8344,0.92504258943781947,4.5996592844974447E-2,464,79,14,14,13,3,587,0,0,0,0,0,0]
["QHM","RTR","SOUTH TEES HOSPITALS NHS FOUNDATION TRUST",462,7353,0.93506493506493504,3.67965367965368E-2,363,69,12,8,9,1,461,0,0,1,0,0,0]
["QHM","R0B","SOUTH TYNESIDE AND SUNDERLAND NHS FOUNDATION TRUST",2,9179,"*","*","*","*","*","*","*","*","*","*","*","*","*","*","*"]
["QHM","RTD","THE NEWCASTLE UPON TYNE HOSPITALS NHS FOUNDATION TRUST",5,8534,0.6,0.4,2,1,0,1,1,0,0,0,0,5,0,0,0]
["QJ2","RFS","CHESTERFIELD ROYAL HOSPITAL NHS FOUNDATION TRUST",435,3537,0.87356321839080464,6.4367816091954022E-2,315,65,27,13,15,0,435,0,0,0,0,0,0]
["QJ2","RTG","UNIVERSITY HOSPITALS OF DERBY AND BURTON NHS FOUNDATION TRUST",463,12443,0.91792656587472998,4.1036717062634988E-2,313,112,19,10,9,0,463,0,0,0,0,0,0]
["QJG","RDE","EAST SUFFOLK AND NORTH ESSEX NHS FOUNDATION TRUST",1060,4225,0.90754716981132078,4.9056603773584909E-2,831,131,35,26,26,11,834,0,0,0,226,0,0]
["QJG","RGR","WEST SUFFOLK NHS FOUNDATION TRUST",0,6413,"NA","NA",0,0,0,0,0,0,0,0,0,0,0,0,0]
["QJK","RBZ","NORTHERN DEVON HEALTHCARE NHS TRUST",6,1873,1,0,6,0,0,0,0,0,0,0,6,0,0,0,0]
["QJK","RH8","ROYAL DEVON AND EXETER NHS FOUNDATION TRUST",0,4412,"NA","NA",0,0,0,0,0,0,0,0,0,0,0,0,0]
["QJK","RK9","UNIVERSITY HOSPITALS PLYMOUTH NHS TRUST",455,10206,0.98901098901098905,2.1978021978021978E-3,421,29,3,1,0,1,0,0,455,0,0,0,0]
["QJM","RWD","UNITED LINCOLNSHIRE HOSPITALS NHS TRUST",892,3412,0.8688340807174888,7.2869955156950675E-2,575,200,47,32,33,5,566,0,0,0,292,34,0]
["QK1","RWE","UNIVERSITY HOSPITALS OF LEICESTER NHS TRUST",1467,10485,0.92978868438991136,4.2944785276073622E-2,1097,267,35,21,42,5,630,217,620,0,0,0,0]
["QKK","RJ1","GUY'S AND ST THOMAS' NHS FOUNDATION TRUST",1040,5116,0.91249999999999998,3.4615384615384617E-2,838,111,29,8,28,26,900,0,53,0,83,4,0]
["QKK","RJZ","KING'S COLLEGE HOSPITAL NHS FOUNDATION TRUST",1540,8359,0.8493506493506493,5.6493506493506492E-2,1061,247,77,30,57,68,1317,29,0,23,0,2,169]
["QKK","RJ2","LEWISHAM AND GREENWICH NHS TRUST",1103,12567,0.81504986400725299,0.10698096101541252,633,266,78,38,80,8,1090,0,0,0,0,13,0]
["QKS","RN7","DARTFORD AND GRAVESHAM NHS TRUST",20,3864,1,0,20,0,0,0,0,0,0,20,0,0,0,0,0]
["QKS","RVV","EAST KENT HOSPITALS UNIVERSITY NHS FOUNDATION TRUST",1194,8159,0.8835845896147404,7.2864321608040197E-2,883,172,52,42,45,0,1194,0,0,0,0,0,0]
["QKS","RWF","MAIDSTONE AND TUNBRIDGE WELLS NHS TRUST",0,6864,"NA","NA",0,0,0,0,0,0,0,0,0,0,0,0,0]
["QKS","RPA","MEDWAY NHS FOUNDATION TRUST",747,4652,0.89022757697456489,6.2918340026773767E-2,549,116,26,15,32,9,580,0,0,0,167,0,0]
["QM7","RWH","EAST AND NORTH HERTFORDSHIRE NHS TRUST",28,9318,0.9642857142857143,0,24,3,1,0,0,0,0,0,23,0,0,5,0]
["QM7","RQW","THE PRINCESS ALEXANDRA HOSPITAL NHS TRUST",0,3774,"NA","NA",0,0,0,0,0,0,0,0,0,0,0,0,0]
["QM7","RWG","WEST HERTFORDSHIRE HOSPITALS NHS TRUST",22,5049,0.90909090909090906,4.5454545454545456E-2,11,9,1,1,0,0,0,22,0,0,0,0,0]
["QMF","RF4","BARKING, HAVERING AND REDBRIDGE UNIVERSITY HOSPITALS NHS TRUST",0,0,"NA","NA",0,0,0,0,0,0,0,0,0,0,0,0,0]
["QMF","R1H","BARTS HEALTH NHS TRUST",2027,20528,0.79033053774050321,0.12284163788850518,1211,391,91,80,169,85,2027,0,0,0,0,0,0]
["QMJ","RP6","MOORFIELDS EYE HOSPITAL NHS FOUNDATION TRUST",1935,4489,0.94728682170542633,2.0155038759689922E-2,1595,238,26,18,21,37,1935,0,0,0,0,0,0]
["QMJ","RAL","ROYAL FREE LONDON NHS FOUNDATION TRUST",72,1710,0.88888888888888884,6.9444444444444448E-2,61,3,2,0,5,1,0,72,0,0,0,0,0]
["QMJ","RRV","UNIVERSITY COLLEGE LONDON HOSPITALS NHS FOUNDATION TRUST",917,3936,0.9280261723009815,3.9258451472191931E-2,749,102,20,6,30,10,876,0,0,0,41,0,0]
["QMJ","RKE","WHITTINGTON HEALTH NHS TRUST",556,5160,0.89028776978417268,7.3741007194244604E-2,421,74,17,11,30,3,556,0,0,0,0,0,0]
["QMM","RGP","JAMES PAGET UNIVERSITY HOSPITALS NHS FOUNDATION TRUST",6,3172,1,0,"*","*","*","*","*","*","*","*","*","*","*","*","*"]
["QMM","RM1","NORFOLK AND NORWICH UNIVERSITY HOSPITALS NHS FOUNDATION TRUST",6,5060,1,0,"*","*","*","*","*","*","*","*","*","*","*","*","*"]
["QMM","RCX","THE QUEEN ELIZABETH HOSPITAL, KING'S LYNN, NHS FOUNDATION TRUST",7,2379,0.7142857142857143,0.2857142857142857,5,0,0,1,1,0,0,0,3,0,0,4,0]
["QNC","RJE","UNIVERSITY HOSPITALS OF NORTH MIDLANDS NHS TRUST",3147,8646,0.72386399745789642,0.17699396250397204,1935,343,200,158,399,112,0,3,0,0,3144,0,0]
["QNQ","RDU","FRIMLEY HEALTH NHS FOUNDATION TRUST",1710,14446,0.91754385964912277,5.0877192982456139E-2,1302,267,49,33,54,5,1606,0,104,0,0,0,0]
["QNX","RXC","EAST SUSSEX HEALTHCARE NHS TRUST",126,5911,0.96825396825396826,1.5873015873015872E-2,71,51,1,0,2,1,0,0,126,0,0,0,0]
["QNX","RPC","QUEEN VICTORIA HOSPITAL NHS FOUNDATION TRUST",129,390,0.96899224806201545,2.3255813953488372E-2,118,7,0,2,1,1,95,0,0,0,34,0,0]
["QNX","RYR","WESTERN SUSSEX HOSPITALS NHS FOUNDATION TRUST",914,6183,0.89387308533916854,5.2516411378555797E-2,718,99,25,18,30,24,892,9,13,0,0,0,0]
["QOC","RXW","THE SHREWSBURY AND TELFORD HOSPITAL NHS TRUST",790,7813,0.93544303797468353,3.9240506329113925E-2,550,189,19,22,9,1,0,0,34,0,756,0,0]
["QOP","RMC","BOLTON NHS FOUNDATION TRUST",10,815,0.7,0,7,0,3,0,0,0,0,0,10,0,0,0,0]
["QOP","R0A","MANCHESTER UNIVERSITY NHS FOUNDATION TRUST",1497,14403,0.92184368737474953,4.4088176352705413E-2,1165,215,39,26,40,12,1067,0,322,0,0,0,108]
["QOP","RW6","PENNINE ACUTE HOSPITALS NHS TRUST",566,20482,0.83568904593639581,0.10954063604240283,395,78,24,27,35,7,471,0,0,0,95,0,0]
["QOP","RM3","SALFORD ROYAL NHS FOUNDATION TRUST",345,6523,0.89855072463768115,7.5362318840579715E-2,271,39,8,8,18,1,307,0,0,0,38,0,0]
["QOP","RWJ","STOCKPORT NHS FOUNDATION TRUST",944,4452,0.88877118644067798,5.2966101694915252E-2,735,104,43,23,27,12,748,0,0,0,196,0,0]
["QOP","RMP","TAMESIDE AND GLOSSOP INTEGRATED CARE NHS FOUNDATION TRUST",508,6185,0.83267716535433067,0.12598425196850394,361,62,20,22,42,1,508,0,0,0,0,0,0]
["QOP","RRF","WRIGHTINGTON, WIGAN AND LEIGH NHS FOUNDATION TRUST",678,5005,0.86578171091445433,9.4395280235988199E-2,482,105,20,25,39,7,482,0,0,0,196,0,0]
["QOQ","RCD","HARROGATE AND DISTRICT NHS FOUNDATION TRUST",355,1774,0.90704225352112677,4.507042253521127E-2,266,56,16,10,6,1,0,0,0,0,355,0,0]
["QOQ","RWA","HULL UNIVERSITY TEACHING HOSPITALS NHS TRUST",1396,6218,0.86174785100286533,7.4498567335243557E-2,989,214,69,46,58,20,1396,0,0,0,0,0,0]
["QOQ","RJL","NORTHERN LINCOLNSHIRE AND GOOLE NHS FOUNDATION TRUST",774,6397,0.78811369509043927,9.5607235142118857E-2,483,127,54,29,45,36,0,0,0,8,0,766,0]
["QOQ","RCB","YORK TEACHING HOSPITAL NHS FOUNDATION TRUST",369,4310,0.9159891598915989,5.1490514905149054E-2,292,46,11,5,14,1,369,0,0,0,0,0,0]
["QOX","RN3","GREAT WESTERN HOSPITALS NHS FOUNDATION TRUST",302,4108,0.89735099337748347,6.2913907284768214E-2,217,54,12,6,13,0,298,0,0,0,0,4,0]
["QOX","RNZ","SALISBURY NHS FOUNDATION TRUST",0,1751,"NA","NA",0,0,0,0,0,0,0,0,0,0,0,0,0]
["QPM","RNQ","KETTERING GENERAL HOSPITAL NHS FOUNDATION TRUST",203,4016,0.78325123152709364,0.14285714285714285,127,32,14,11,18,1,0,0,0,0,0,203,0]
["QPM","RNS","NORTHAMPTON GENERAL HOSPITAL NHS TRUST",1002,5915,0.85628742514970058,0.10179640718562874,688,170,36,43,59,6,785,0,0,0,212,5,0]
["QR1","RTE","GLOUCESTERSHIRE HOSPITALS NHS FOUNDATION TRUST",803,2947,0.87173100871731013,7.9701120797011207E-2,536,164,34,28,36,5,755,0,0,0,42,6,0]
["QRL","RN5","HAMPSHIRE HOSPITALS NHS FOUNDATION TRUST",1005,4037,0.92039800995024879,3.5820895522388062E-2,818,107,39,25,11,5,703,0,2,0,299,1,0]
["QRL","R1F","ISLE OF WIGHT NHS TRUST",6,2168,1,0,6,0,0,0,0,0,0,0,6,0,0,0,0]
["QRL","RHU","PORTSMOUTH HOSPITALS UNIVERSITY NATIONAL HEALTH SERVICE TRUST",1238,6646,0.90064620355411951,5.7350565428109852E-2,974,141,49,27,44,3,1238,0,0,0,0,0,0]
["QRL","RHM","UNIVERSITY HOSPITAL SOUTHAMPTON NHS FOUNDATION TRUST",0,7880,"NA","NA",0,0,0,0,0,0,0,0,0,0,0,0,0]
["QRV","RQM","CHELSEA AND WESTMINSTER HOSPITAL NHS FOUNDATION TRUST",742,6002,0.91509433962264153,6.0646900269541781E-2,582,97,17,12,33,1,696,0,0,0,28,18,0]
["QRV","RYJ","IMPERIAL COLLEGE HEALTHCARE NHS TRUST",752,12461,0.90691489361702127,5.9840425531914897E-2,579,103,25,13,32,0,0,0,0,0,0,752,0]
["QRV","R1K","LONDON NORTH WEST UNIVERSITY HEALTHCARE NHS TRUST",31,3713,0.70967741935483875,0.12903225806451613,10,12,0,0,4,5,0,0,0,31,0,0,0]
["QRV","RAS","THE HILLINGDON HOSPITALS NHS FOUNDATION TRUST",273,2429,0.78754578754578752,0.14652014652014653,158,57,17,16,24,1,0,0,0,0,0,273,0]
["QSL","RH5","SOMERSET NHS FOUNDATION TRUST",1,6998,"*","*","*","*","*","*","*","*","*","*","*","*","*","*","*"]
["QSL","RA4","YEOVIL DISTRICT HOSPITAL NHS FOUNDATION TRUST",1,1861,"*","*","*","*","*","*","*","*","*","*","*","*","*","*","*"]
["QT1","RX1","NOTTINGHAM UNIVERSITY HOSPITALS NHS TRUST",0,6308,"NA","NA",0,0,0,0,0,0,0,0,0,0,0,0,0]
["QT1","RK5","SHERWOOD FOREST HOSPITALS NHS FOUNDATION TRUST",949,4924,0.93361433087460488,3.7934668071654375E-2,724,162,26,14,22,1,522,0,425,0,0,2,0]
["QT6","REF","ROYAL CORNWALL HOSPITALS NHS TRUST",470,3638,0.91276595744680855,6.1702127659574467E-2,350,79,11,15,14,1,443,27,0,0,0,0,0]
["QU9","RXQ","BUCKINGHAMSHIRE HEALTHCARE NHS TRUST",785,2923,0.89171974522292996,5.9872611464968153E-2,"*","*","*","*","*","*","*","*","*","*","*","*","*"]
["QU9","RTH","OXFORD UNIVERSITY HOSPITALS NHS FOUNDATION TRUST",1505,4647,0.88239202657807314,6.843853820598006E-2,1073,255,63,43,60,11,1497,0,0,0,0,8,0]
["QU9","RHW","ROYAL BERKSHIRE NHS FOUNDATION TRUST",1,5844,"*","*","*","*","*","*","*","*","*","*","*","*","*","*","*"]
["QUA","RNA","THE DUDLEY GROUP NHS FOUNDATION TRUST",779,3085,0.82284980744544289,6.8035943517329917E-2,519,122,20,20,33,65,771,0,0,0,0,8,0]
["QUA","RBK","WALSALL HEALTHCARE NHS TRUST",427,2259,0.81967213114754101,8.899297423887588E-2,262,88,29,16,22,10,158,0,0,0,269,0,0]
["QUE","RGT","CAMBRIDGE UNIVERSITY HOSPITALS NHS FOUNDATION TRUST",874,3512,0.93707093821510301,2.9748283752860413E-2,720,99,22,13,13,7,765,0,1,92,0,16,0]
["QUE","RGN","NORTH WEST ANGLIA NHS FOUNDATION TRUST",262,7130,0.85114503816793896,9.1603053435114504E-2,179,44,12,12,12,3,235,0,27,0,0,0,0]
["QUY","RVJ","NORTH BRISTOL NHS TRUST",943,3964,0.87486744432661723,7.6352067868504778E-2,702,123,34,26,46,12,799,0,0,0,144,0,0]
["QUY","RA7","UNIVERSITY HOSPITALS BRISTOL AND WESTON NHS FOUNDATION TRUST",407,6126,0.92137592137592139,4.4226044226044224E-2,330,45,8,7,11,6,395,0,5,7,0,0,0]
["QVV","RBD","DORSET COUNTY HOSPITAL NHS FOUNDATION TRUST",714,1722,0.95658263305322133,2.3809523809523808E-2,568,115,13,10,7,1,709,0,0,0,5,0,0]
["QVV","R0D","UNIVERSITY HOSPITALS DORSET NHS FOUNDATION TRUST",743,6281,0.92597577388963659,4.1722745625841183E-2,576,112,17,14,17,7,740,0,0,3,0,0,0]
["QWE","RJ6","CROYDON HEALTH SERVICES NHS TRUST",800,6305,0.87875000000000003,7.8750000000000001E-2,597,106,33,18,45,1,800,0,0,0,0,0,0]
["QWE","RVR","EPSOM AND ST HELIER UNIVERSITY HOSPITALS NHS TRUST",1118,5743,0.92665474060822894,4.2039355992844363E-2,875,161,29,19,28,6,1017,4,7,0,88,2,0]
["QWE","RAX","KINGSTON HOSPITAL NHS FOUNDATION TRUST",811,3576,0.89765721331689274,6.5351418002466091E-2,618,110,27,20,33,3,759,0,0,0,40,12,0]
["QWO","RCF","AIREDALE NHS FOUNDATION TRUST",374,2232,0.90106951871657759,5.8823529411764705E-2,287,50,12,11,11,3,374,0,0,0,0,0,0]
["QWO","RAE","BRADFORD TEACHING HOSPITALS NHS FOUNDATION TRUST",11,6398,0.54545454545454541,9.0909090909090912E-2,3,3,4,1,0,0,0,11,0,0,0,0,0]
["QWO","RWY","CALDERDALE AND HUDDERSFIELD NHS FOUNDATION TRUST",788,7239,0.90989847715736039,5.964467005076142E-2,619,98,20,17,30,4,703,0,0,0,0,85,0]
["QWO","RR8","LEEDS TEACHING HOSPITALS NHS TRUST",2381,8991,0.89332213355732881,6.5098698026039473E-2,1674,453,92,69,86,7,1351,748,0,0,282,0,0]
["QWO","RXF","MID YORKSHIRE HOSPITALS NHS TRUST",15,7773,0.6,0.4,8,1,0,1,5,0,0,0,0,0,0,15,0]
["QWU","RLT","GEORGE ELIOT HOSPITAL NHS TRUST",1317,3320,0.8959757023538345,6.7577828397873962E-2,974,206,36,36,53,12,1302,0,0,0,15,0,0]
["QWU","RJC","SOUTH WARWICKSHIRE NHS FOUNDATION TRUST",3,1463,"*","*","*","*","*","*","*","*","*","*","*","*","*","*","*"]
["QWU","RKB","UNIVERSITY HOSPITALS COVENTRY AND WARWICKSHIRE NHS TRUST",1154,9382,0.86308492201039866,7.2790294627383012E-2,"*","*","*","*","*","*","*","*","*","*","*","*","*"]
["QXU","RA2","ROYAL SURREY COUNTY HOSPITAL NHS FOUNDATION TRUST",493,1431,0.93509127789046653,4.665314401622718E-2,394,67,9,13,10,0,442,0,0,0,51,0,0]
["QXU","RTP","SURREY AND SUSSEX HEALTHCARE NHS TRUST",444,4879,0.9144144144144144,6.5315315315315314E-2,350,56,8,15,14,1,430,0,2,0,2,10,0]
["QYG","RBS","ALDER HEY CHILDREN'S NHS FOUNDATION TRUST",206,3064,0.90776699029126218,6.3106796116504854E-2,168,19,5,7,6,1,206,0,0,0,0,0,0]
["QYG","RJR","COUNTESS OF CHESTER HOSPITAL NHS FOUNDATION TRUST",631,3078,0.91917591125198095,5.388272583201268E-2,526,54,13,15,19,4,575,0,0,0,56,0,0]
["QYG","RJN","EAST CHESHIRE NHS TRUST",513,1860,0.91033138401559455,5.4580896686159841E-2,409,58,16,10,18,2,453,0,0,0,60,0,0]
["QYG","REM","LIVERPOOL UNIVERSITY HOSPITALS NHS FOUNDATION TRUST",1366,6728,0.81698389458272325,0.12298682284040996,911,205,62,54,114,20,1249,0,0,0,117,0,0]
["QYG","REP","LIVERPOOL WOMEN'S NHS FOUNDATION TRUST",118,951,0.83050847457627119,9.3220338983050849E-2,75,23,9,8,3,0,0,0,0,0,0,118,0]
["QYG","RBT","MID CHESHIRE HOSPITALS NHS FOUNDATION TRUST",919,4361,0.93471164309031551,3.9173014145810661E-2,735,124,21,15,21,3,847,0,0,0,72,0,0]
["QYG","RVY","SOUTHPORT AND ORMSKIRK HOSPITAL NHS TRUST",702,2709,0.95014245014245013,3.4188034188034191E-2,574,93,10,15,9,1,558,0,0,0,143,1,0]
["QYG","RBN","ST HELENS AND KNOWSLEY TEACHING HOSPITALS NHS TRUST",627,4015,0.89792663476874002,4.9441786283891544E-2,475,88,29,13,18,4,564,0,0,0,63,0,0]
["QYG","RWW","WARRINGTON AND HALTON TEACHING HOSPITALS NHS FOUNDATION TRUST",1137,2046,0.87071240105540892,8.3553210202286718E-2,828,162,47,29,66,5,923,0,0,0,213,1,0]
["QYG","RBL","WIRRAL UNIVERSITY TEACHING HOSPITAL NHS FOUNDATION TRUST",541,3576,0.83918669131238444,9.0573012939001843E-2,376,78,31,17,32,7,473,0,0,0,68,0,0]

{"sheet":"Sites","index":4,"n_rows":223,"n_cols":15,"rows_kept":223,"cut":false,"hidden":false,"merged":[[2,6,3,6],[2,7,3,7],[2,8,3,8],[2,9,2,14],[2,0,3,0],[2,1,3,1],[2,2,3,2],[2,3,3,3],[2,4,3,4],[2,5,3,5]]}
[]
[]
["STP Code","Trust Code","Trust Name","Site Code","Site Name","Total Responses","Total Eligible","Percentage Positive","Percentage Negative","Breakdown of Responses"]
[null,null,null,null,null,null,null,null,null,"Very Good","Good","Neither Good nor Poor","Poor","Very Poor","Don't Know"]
[null,null,null,null,"England",72633,665918,0.8801784312915617,7.0353695978412012E-2,53073,10857,2737,1955,3155,856]
[null,null,null,null,"Selection (excluding suppressed data)",{"$f":"SUM(J6:O6)","v":69611},{"$f":"G5-(SUMIF(H7:H223,\"*\",G7:G223))","v":577868},{"$f":"IFERROR((J6+K6)/F6, \"-\")","v":0.87990403815488927},{"$f":"IFERROR((M6+N6)/F6, \"-\")","v":7.0463001537113393E-2},{"$f":"SUBTOTAL(9,J7:J987)","v":50858},10393,2616,1878,3027,839]
["QE1","RXR","EAST LANCASHIRE HOSPITALS NHS TRUST","RXR20","Royal Blackburn Hospital - RXR20",844,8659,0.83293838862559244,0.10308056872037914,551,152,50,38,49,4]
["QE1","RXN","LANCASHIRE TEACHING HOSPITALS NHS FOUNDATION TRUST","RXN01","Chorley and South Ribble Hospital - RXN01",128,718,0.96875,7.8125E-3,110,14,3,1,0,0]
["QE1","RXN","LANCASHIRE TEACHING HOSPITALS NHS FOUNDATION TRUST","RXN02","Royal Preston Hospital - RXN02",262,1987,0.85877862595419852,9.9236641221374045E-2,185,40,9,18,8,2]
["QE1","RTX","UNIVERSITY HOSPITALS OF MORECAMBE BAY NHS FOUNDATION TRUST","RTXBU","Furness General Hospital - RTXBU",268,1405,0.91791044776119401,5.2238805970149252E-2,215,31,6,4,10,2]
["QE1","RTX","UNIVERSITY HOSPITALS OF MORECAMBE BAY NHS FOUNDATION TRUST","RTX02","Royal Lancaster Infirmary - RTX02",554,2430,0.87725631768953072,6.8592057761732855E-2,410,76,27,13,25,3]
["QE1","RTX","UNIVERSITY HOSPITALS OF MORECAMBE BAY NHS FOUNDATION TRUST","RTXBW","Westmorland General Hospital - RTXBW",250,903,0.97599999999999998,1.6E-2,222,22,1,3,1,1]
["QF7","RFF","BARNSLEY HOSPITAL NHS FOUNDATION TRUST","RFFAA","Barnsley Hospital NHS Foundation Trust HQ - RFFAA",196,5894,0.88775510204081631,9.6938775510204078E-2,133,41,3,13,6,0]
["QF7","RP5","DONCASTER AND BASSETLAW TEACHING HOSPITALS NHS FOUNDATION TRUST","RP5BA","Bassetlaw Hospital - RP5BA",1,2405,"*","*","*","*","*","*","*","*"]
["QF7","RP5","DONCASTER AND BASSETLAW TEACHING HOSPITALS NHS FOUNDATION TRUST","RP5DR","Doncaster Royal Infirmary - RP5DR",5,5856,1,0,"*","*","*","*","*","*"]
["QF7","RP5","DONCASTER AND BASSETLAW TEACHING HOSPITALS NHS FOUNDATION TRUST","RP5MM","Montagu Hospital - RP5MM",0,1005,"NA","NA",0,0,0,0,0,0]
["QF7","RCU","SHEFFIELD CHILDREN'S NHS FOUNDATION TRUST","RCUEF","Sheffield Children's Hospital - RCUEF",427,2407,0.87822014051522246,6.7915690866510545E-2,334,41,16,13,16,7]
["QF7","RHQ","SHEFFIELD TEACHING HOSPITALS NHS FOUNDATION TRUST","RHQNG","Northern General Hospital - RHQNG",1112,5021,0.84892086330935257,9.0827338129496407E-2,793,151,56,45,56,11]
["QF7","RHQ","SHEFFIELD TEACHING HOSPITALS NHS FOUNDATION TRUST","RHQHH","Royal Hallamshire Hospital - RHQHH",132,477,0.96969696969696972,7.575757575757576E-3,117,11,3,0,1,0]
["QF7","RFR","THE ROTHERHAM NHS FOUNDATION TRUST","RFRPA","Rotherham District General Hospital - RFRPA",1,5675,"*","*","*","*","*","*","*","*"]
["QGH","RWP","WORCESTERSHIRE ACUTE HOSPITALS NHS TRUST","RWP01","Alexandra Hospital - RWP01",519,2384,0.87283236994219648,9.2485549132947972E-2,"*","*","*","*","*","*"]
["QGH","RWP","WORCESTERSHIRE ACUTE HOSPITALS NHS TRUST","RWP31","Kidderminster Hospital - RWP31",158,929,0.97468354430379744,0,"*","*","*","*","*","*"]
["QGH","RWP","WORCESTERSHIRE ACUTE HOSPITALS NHS TRUST","RWP50","Worcestershire Royal Hospital - RWP50",584,3080,0.88698630136986301,6.5068493150684928E-2,412,106,25,12,26,3]
["QGH","RLQ","WYE VALLEY NHS TRUST","RLQ01","Hereford County Hospital - RLQ01",1,0,"*","*","*","*","*","*","*","*"]
["QH8","RAJ","MID AND SOUTH ESSEX NHS FOUNDATION TRUST","RAJ12","Basildon Hospital - RAJ12",489,5127,0.86912065439672803,8.3844580777096112E-2,348,77,17,10,31,6]
["QH8","RAJ","MID AND SOUTH ESSEX NHS FOUNDATION TRUST","RAJ32","Mid Essex Hospital - RAJ32",455,3425,0.8813186813186813,5.7142857142857141E-2,338,63,15,15,11,13]
["QH8","RAJ","MID AND SOUTH ESSEX NHS FOUNDATION TRUST","RAJ01","Southend Hospital - RAJ01",325,3071,0.86769230769230765,7.6923076923076927E-2,237,45,11,10,15,7]
["QHG","RC9","BEDFORDSHIRE HOSPITALS NHS FOUNDATION TRUST","RC979","Bedford Hospital South Wing - RC979",665,2867,0.86466165413533835,6.616541353383458E-2,445,130,42,17,27,4]
["QHG","RC9","BEDFORDSHIRE HOSPITALS NHS FOUNDATION TRUST","RC971","Luton and Dunstable Hospital - RC971",6,6661,1,0,6,0,0,0,0,0]
["QHG","RD8","MILTON KEYNES UNIVERSITY HOSPITAL NHS FOUNDATION TRUST","RD816","Milton Keynes Hospital - RD816",46,5530,1,0,40,6,0,0,0,0]
["QHL","RQ3","BIRMINGHAM WOMEN'S AND CHILDREN'S NHS FOUNDATION TRUST","RQ301","Birmingham Children's Hospital - RQ301",8,2504,1,0,7,1,0,0,0,0]
["QHL","RRK","UNIVERSITY HOSPITALS BIRMINGHAM NHS FOUNDATION TRUST","RRK98","Good Hope Hospital - RRK98",509,3198,0.88605108055009818,5.304518664047151E-2,376,75,24,8,19,7]
["QHL","RRK","UNIVERSITY HOSPITALS BIRMINGHAM NHS FOUNDATION TRUST","RRK97","Heartlands Hospital - RRK97",622,5094,0.82154340836012862,0.1157556270096463,401,110,29,20,52,10]
["QHL","RRK","UNIVERSITY HOSPITALS BIRMINGHAM NHS FOUNDATION TRUST","RRK15","Queen Elizabeth Hospital Birmingham - RRK15",869,4979,0.8239355581127733,0.10586881472957423,571,145,53,37,55,8]
["QHL","RRK","UNIVERSITY HOSPITALS BIRMINGHAM NHS FOUNDATION TRUST","RRK99","Solihull Hospital - RRK99",0,0,"NA","NA",0,0,0,0,0,0]
["QHM","RXP","COUNTY DURHAM AND DARLINGTON NHS FOUNDATION TRUST","RXPXXX","WiC_MIU - RXPXXX",2,1695,"*","*","*","*","*","*","*","*"]
["QHM","RR7","GATESHEAD HEALTH NHS FOUNDATION TRUST","RR7EN","Queen Elizabeth Hospital - RR7EN",168,3571,0.8571428571428571,0.11904761904761904,125,19,4,5,15,0]
["QHM","RNN","NORTH CUMBRIA INTEGRATED CARE NHS FOUNDATION TRUST","RNN62","Cumberland Infirmary - RNN62",0,1897,"NA","NA",0,0,0,0,0,0]
["QHM","RNN","NORTH CUMBRIA INTEGRATED CARE NHS FOUNDATION TRUST","RNNBX","West Cumberland Hospital - RNNBX",1,1327,"*","*","*","*","*","*","*","*"]
["QHM","RVW","NORTH TEES AND HARTLEPOOL NHS FOUNDATION TRUST","RVWAE","University Hospital Of North Tees - RVWAE",27,2797,0.85185185185185186,7.407407407407407E-2,18,5,2,1,1,0]
["QHM","RTF","NORTHUMBRIA HEALTHCARE NHS FOUNDATION TRUST","RTF86","The Northumbria - RTF86",195,3082,0.89230769230769236,7.179487179487179E-2,147,27,7,6,8,0]
["QHM","RTF","NORTHUMBRIA HEALTHCARE NHS FOUNDATION TRUST","RTFXXX","WiC_MIU - RTFXXX",392,5262,0.94132653061224492,3.3163265306122451E-2,317,52,7,8,5,3]
["QHM","RTR","SOUTH TEES HOSPITALS NHS FOUNDATION TRUST","RTR45","Friarage Hospital Site - RTR45",59,683,0.98305084745762716,1.6949152542372881E-2,53,5,0,0,1,0]
["QHM","RTR","SOUTH TEES HOSPITALS NHS FOUNDATION TRUST","RTRAT","The James Cook University Hospital - RTRAT",308,5116,0.91558441558441561,4.5454545454545456E-2,228,54,11,7,7,1]
["QHM","RTR","SOUTH TEES HOSPITALS NHS FOUNDATION TRUST","RTRXXX","WiC_MIU - RTRXXX",95,1554,0.96842105263157896,2.1052631578947368E-2,82,10,1,1,1,0]
["QHM","R0B","SOUTH TYNESIDE AND SUNDERLAND NHS FOUNDATION TRUST","R0B0Q","South Tyneside District Hospital - R0B0Q",2,2484,"*","*","*","*","*","*","*","*"]
["QHM","R0B","SOUTH TYNESIDE AND SUNDERLAND NHS FOUNDATION TRUST","R0B0X","Sunderland Eye Infirmary – R0B0X",0,855,"NA","NA",0,0,0,0,0,0]
["QHM","R0B","SOUTH TYNESIDE AND SUNDERLAND NHS FOUNDATION TRUST","R0B01","Sunderland Royal Hospital – R0B01",0,3498,"NA","NA",0,0,0,0,0,0]
["QHM","R0B","SOUTH TYNESIDE AND SUNDERLAND NHS FOUNDATION TRUST","R0BXXX","WiC_MIU - R0BXXX",0,2342,"NA","NA",0,0,0,0,0,0]
["QHM","RTD","THE NEWCASTLE UPON TYNE HOSPITALS NHS FOUNDATION TRUST","RTD02","The Royal Victoria Infirmary - RTD02",5,8534,0.6,0.4,2,1,0,1,1,0]
["QJ2","RFS","CHESTERFIELD ROYAL HOSPITAL NHS FOUNDATION TRUST","RFSDA","Chesterfield Royal Hospital - RFSDA",435,3537,0.87356321839080464,6.4367816091954022E-2,315,65,27,13,15,0]
["QJ2","RTG","UNIVERSITY HOSPITALS OF DERBY AND BURTON NHS FOUNDATION TRUST","RTG02","Queen's Hospital, Burton Upon Trent - RTG02",89,2704,0.9213483146067416,3.3707865168539325E-2,65,17,4,0,3,0]
["QJ2","RTG","UNIVERSITY HOSPITALS OF DERBY AND BURTON NHS FOUNDATION TRUST","RTGFG","Royal Derby Hospital - RTGFG",270,7156,0.9,5.185185185185185E-2,158,85,13,9,5,0]
["QJ2","RTG","UNIVERSITY HOSPITALS OF DERBY AND BURTON NHS FOUNDATION TRUST","RTG54","Samuel Johnson - RTG54",55,1281,0.98181818181818181,0,49,5,1,0,0,0]
["QJ2","RTG","UNIVERSITY HOSPITALS OF DERBY AND BURTON NHS FOUNDATION TRUST","RTG50","Sir Robert Peel - RTG50",49,1302,0.93877551020408168,4.0816326530612242E-2,41,5,1,1,1,0]
["QJG","RDE","EAST SUFFOLK AND NORTH ESSEX NHS FOUNDATION TRUST","RDEE4","Colchester General Hospital - RDEE4",489,2056,0.9038854805725971,5.7259713701431493E-2,373,69,15,16,12,4]
["QJG","RDE","EAST SUFFOLK AND NORTH ESSEX NHS FOUNDATION TRUST","RDE03","Ipswich Hospital - RDE03",571,2169,0.91068301225919435,4.2031523642732049E-2,458,62,20,10,14,7]
["QJG","RGR","WEST SUFFOLK NHS FOUNDATION TRUST","RGR50","West Suffolk Hospital - RGR50",0,6413,"NA","NA",0,0,0,0,0,0]
["QJK","RBZ","NORTHERN DEVON HEALTHCARE NHS TRUST","RBZ12","North Devon District Hospital - RBZ12",6,1873,1,0,6,0,0,0,0,0]
["QJK","RH8","ROYAL DEVON AND EXETER NHS FOUNDATION TRUST","RH801","Royal Devon and Exeter Hospital (Wonford) - RH801",0,4412,"NA","NA",0,0,0,0,0,0]
["QJK","RK9","UNIVERSITY HOSPITALS PLYMOUTH NHS TRUST","RK950","Derriford Hospital - RK950",308,8111,0.98701298701298701,3.246753246753247E-3,277,27,3,1,0,0]
["QJK","RK9","UNIVERSITY HOSPITALS PLYMOUTH NHS TRUST","RK9XXX","WiC_MIU - RK9XXX",147,2095,0.99319727891156462,0,144,2,0,0,0,1]
["QJM","RWD","UNITED LINCOLNSHIRE HOSPITALS NHS TRUST","RWDLP","Grantham and District Hospital - RWDLP",0,0,"NA","NA",0,0,0,0,0,0]
["QJM","RWD","UNITED LINCOLNSHIRE HOSPITALS NHS TRUST","RWDDA","Lincoln County Hospital - RWDDA",598,2084,0.87458193979933108,7.0234113712374577E-2,386,137,30,20,22,3]
["QJM","RWD","UNITED LINCOLNSHIRE HOSPITALS NHS TRUST","RWDLA","Pilgrim Hospital - RWDLA",294,1328,0.8571428571428571,7.8231292517006806E-2,189,63,17,12,11,2]
["QK1","RWE","UNIVERSITY HOSPITALS OF LEICESTER NHS TRUST","RWEAA","Leicester Royal Infirmary - RWEAA",1467,10485,0.92978868438991136,4.2944785276073622E-2,1097,267,35,21,42,5]
["QKK","RJ1","GUY'S AND ST THOMAS' NHS FOUNDATION TRUST","RJ122","St Thomas' Hospital - RJ122",854,4376,0.91451990632318503,3.0444964871194378E-2,683,98,25,4,22,22]
["QKK","RJ1","GUY'S AND ST THOMAS' NHS FOUNDATION TRUST","RJ1XXX","WiC_MIU - RJ1XXX",186,740,0.90322580645161288,5.3763440860215055E-2,155,13,4,4,6,4]
["QKK","RJZ","KING'S COLLEGE HOSPITAL NHS FOUNDATION TRUST","RJZ01","King's College Hospital (Denmark Hill) - RJZ01",1114,6056,0.85278276481149018,5.475763016157989E-2,768,182,52,20,41,51]
["QKK","RJZ","KING'S COLLEGE HOSPITAL NHS FOUNDATION TRUST","RJZ30","Princess Royal University Hospital - RJZ30",426,2303,0.84037558685446012,6.1032863849765258E-2,293,65,25,10,16,17]
["QKK","RJ2","LEWISHAM AND GREENWICH NHS TRUST","RJ231","Queen Elizabeth Hospital - RJ231",436,5288,0.80963302752293576,0.11238532110091744,226,127,31,15,34,3]
["QKK","RJ2","LEWISHAM AND GREENWICH NHS TRUST","RJ224","University Hospital Lewisham - RJ224",667,7279,0.81859070464767614,0.10344827586206896,407,139,47,23,46,5]
["QKS","RN7","DARTFORD AND GRAVESHAM NHS TRUST","RN707","Darent Valley Hospital - RN707",20,3864,1,0,20,0,0,0,0,0]
["QKS","RVV","EAST KENT HOSPITALS UNIVERSITY NHS FOUNDATION TRUST","RVV02","Buckland Hospital - RVV02",63,351,0.90476190476190477,3.1746031746031744E-2,52,5,4,2,0,0]
["QKS","RVV","EAST KENT HOSPITALS UNIVERSITY NHS FOUNDATION TRUST","RVVKC","Kent and Canterbury Hospital - RVVKC",62,353,0.95161290322580649,4.8387096774193547E-2,50,9,0,2,1,0]
["QKS","RVV","EAST KENT HOSPITALS UNIVERSITY NHS FOUNDATION TRUST","RVV09","Queen Elizabeth The Queen Mother Hospital - RVV09",518,3482,0.88223938223938225,7.1428571428571425E-2,389,68,24,16,21,0]
["QKS","RVV","EAST KENT HOSPITALS UNIVERSITY NHS FOUNDATION TRUST","RVV01","William Harvey Hospital (Ashford) - RVV01",551,3973,0.87477313974591653,8.1669691470054442E-2,392,90,24,22,23,0]
["QKS","RWF","MAIDSTONE AND TUNBRIDGE WELLS NHS TRUST","RWF03","Maidstone District General Hospital - RWF03",0,3552,"NA","NA",0,0,0,0,0,0]
["QKS","RWF","MAIDSTONE AND TUNBRIDGE WELLS NHS TRUST","RWFTW","The Tunbridge Wells Hospital - RWFTW",0,3312,"NA","NA",0,0,0,0,0,0]
["QKS","RWF","MAIDSTONE AND TUNBRIDGE WELLS NHS TRUST","RWFXXX","WiC_MIU - RWFXXX",0,0,"NA","NA",0,0,0,0,0,0]
["QKS","RPA","MEDWAY NHS FOUNDATION TRUST","RPA02","Medway Maritime Hospital - RPA02",747,4652,0.89022757697456489,6.2918340026773767E-2,549,116,26,15,32,9]
["QM7","RWH","EAST AND NORTH HERTFORDSHIRE NHS TRUST","RWH01","Lister Hospital - RWH01",28,6936,0.9642857142857143,0,24,3,1,0,0,0]
["QM7","RWH","EAST AND NORTH HERTFORDSHIRE NHS TRUST","RWH20","Queen Elizabeth I I Hospital - RWH20",0,2382,"NA","NA",0,0,0,0,0,0]
["QM7","RQW","THE PRINCESS ALEXANDRA HOSPITAL NHS TRUST","RQWG0","Princess Alexandra Hospital - RQWG0",0,3774,"NA","NA",0,0,0,0,0,0]
["QM7","RWG","WEST HERTFORDSHIRE HOSPITALS NHS TRUST","RWG02","Watford General Hospital - RWG02",22,5049,0.90909090909090906,4.5454545454545456E-2,11,9,1,1,0,0]
["QMF","RF4","BARKING, HAVERING AND REDBRIDGE UNIVERSITY HOSPITALS NHS TRUST","RF4DG","King George Hospital - RF4DG",0,0,"NA","NA",0,0,0,0,0,0]
["QMF","RF4","BARKING, HAVERING AND REDBRIDGE UNIVERSITY HOSPITALS NHS TRUST","RF4QH","Queen's Hospital - RF4QH",0,0,"NA","NA",0,0,0,0,0,0]
["QMF","R1H","BARTS HEALTH NHS TRUST","R1HNH","Newham General Hospital - R1HNH",296,3858,0.73310810810810811,0.15202702702702703,155,62,18,13,32,16]
["QMF","R1H","BARTS HEALTH NHS TRUST","R1HM0","St Bartholomew's Hospital - R1HM0",0,0,"NA","NA",0,0,0,0,0,0]
["QMF","R1H","BARTS HEALTH NHS TRUST","R1H12","The Royal London Hospital - R1H12",460,3824,0.86521739130434783,7.6086956521739135E-2,320,78,14,11,24,13]
["QMF","R1H","BARTS HEALTH NHS TRUST","R1HKH","Whipps Cross University Hospital - R1HKH",592,3765,0.83614864864864868,8.4459459459459457E-2,370,125,23,23,27,24]
["QMF","R1H","BARTS HEALTH NHS TRUST","R1HXXX","WiC_MIU - R1HXXX",679,9081,0.72459499263622973,0.17525773195876287,366,126,36,33,86,32]
["QMJ","RP6","MOORFIELDS EYE HOSPITAL NHS FOUNDATION TRUST","RP601","Moorfields Eye Hospital (City Road) - RP601",1935,4489,0.94728682170542633,2.0155038759689922E-2,1595,238,26,18,21,37]
["QMJ","RAL","ROYAL FREE LONDON NHS FOUNDATION TRUST","RALXXX","WiC_MIU - RALXXX",72,1710,0.88888888888888884,6.9444444444444448E-2,61,3,2,0,5,1]
["QMJ","RRV","UNIVERSITY COLLEGE LONDON HOSPITALS NHS FOUNDATION TRUST","RRV03","University College Hospital - RRV03",917,3936,0.9280261723009815,3.9258451472191931E-2,749,102,20,6,30,10]
["QMJ","RKE","WHITTINGTON HEALTH NHS TRUST","RKEQ4","The Whittington Hospital - RKEQ4",556,5160,0.89028776978417268,7.3741007194244604E-2,421,74,17,11,30,3]
["QMM","RGP","JAMES PAGET UNIVERSITY HOSPITALS NHS FOUNDATION TRUST","RGP75","James Paget University Hospital - RGP75",6,3172,1,0,"*","*","*","*","*","*"]
["QMM","RM1","NORFOLK AND NORWICH UNIVERSITY HOSPITALS NHS FOUNDATION TRUST","RM102","Norfolk and Norwich University Hospital - RM102",6,5060,1,0,"*","*","*","*","*","*"]
["QMM","RCX","THE QUEEN ELIZABETH HOSPITAL, KING'S LYNN, NHS FOUNDATION TRUST","RCX70","The Queen Elizabeth Hospital - RCX70",7,2379,0.7142857142857143,0.2857142857142857,5,0,0,1,1,0]
["QNC","RJE","UNIVERSITY HOSPITALS OF NORTH MIDLANDS NHS TRUST","RJE09","County Hospital - RJE09",516,1546,0.77325581395348841,0.16085271317829458,326,73,25,20,63,9]
["QNC","RJE","UNIVERSITY HOSPITALS OF NORTH MIDLANDS NHS TRUST","RJE01","Royal Stoke University Hospital - RJE01",1820,3883,0.70494505494505499,0.17747252747252748,1089,194,134,94,229,80]
["QNC","RJE","UNIVERSITY HOSPITALS OF NORTH MIDLANDS NHS TRUST","RJEXXX","WiC_MIU - RJEXXX",811,3217,0.73489519112207147,0.18618988902589395,520,76,41,44,107,23]
["QNQ","RDU","FRIMLEY HEALTH NHS FOUNDATION TRUST","RDU01","Frimley Park Hospital - RDU01",1126,7287,0.91829484902309055,5.1509769094138541E-2,868,166,31,22,36,3]
["QNQ","RDU","FRIMLEY HEALTH NHS FOUNDATION TRUST","RDU50","Wexham Park Hospital - RDU50",584,7159,0.91609589041095896,4.965753424657534E-2,434,101,18,11,18,2]
["QNX","RXC","EAST SUSSEX HEALTHCARE NHS TRUST","RXC01","Conquest Hospital - RXC01",15,2602,0.8666666666666667,0.13333333333333333,13,0,0,0,2,0]
["QNX","RXC","EAST SUSSEX HEALTHCARE NHS TRUST","RXC02","Eastbourne District General Hospital - RXC02",111,3309,0.98198198198198194,0,58,51,1,0,0,1]
["QNX","RPC","QUEEN VICTORIA HOSPITAL NHS FOUNDATION TRUST","RPC","QUEEN VICTORIA HOSPITAL NHS FOUNDATION TRUST",129,390,0.96899224806201545,2.3255813953488372E-2,118,7,0,2,1,1]
["QNX","RYR","WESTERN SUSSEX HOSPITALS NHS FOUNDATION TRUST","RYR16","St Richard's Hospital - RYR16",361,2474,0.88365650969529086,4.7091412742382273E-2,289,30,15,6,11,10]
["QNX","RYR","WESTERN SUSSEX HOSPITALS NHS FOUNDATION TRUST","RYR18","Worthing Hospital - RYR18",553,3709,0.90054249547920429,5.6057866184448461E-2,429,69,10,12,19,14]
["QOC","RXW","THE SHREWSBURY AND TELFORD HOSPITAL NHS TRUST","RXWAS","Royal Shrewsbury Hospital - RXWAS",429,3936,0.9533799533799534,2.564102564102564E-2,312,97,8,8,3,1]
["QOC","RXW","THE SHREWSBURY AND TELFORD HOSPITAL NHS TRUST","RXWAT","The Princess Royal Hospital - RXWAT",361,3877,0.91412742382271472,5.5401662049861494E-2,238,92,11,14,6,0]
["QOP","RMC","BOLTON NHS FOUNDATION TRUST","RMC01","Royal Bolton Hospital - RMC01",10,815,0.7,0,7,0,3,0,0,0]
["QOP","R0A","MANCHESTER UNIVERSITY NHS FOUNDATION TRUST","R0A04","Manchester Royal Eye Hospital - R0A04",42,1317,1,0,30,12,0,0,0,0]
["QOP","R0A","MANCHESTER UNIVERSITY NHS FOUNDATION TRUST","R0A02","Manchester Royal Infirmary - R0A02",451,5283,0.89800443458980039,5.7649667405764965E-2,326,79,15,10,16,5]
["QOP","R0A","MANCHESTER UNIVERSITY NHS FOUNDATION TRUST","R0A03","Royal Manchester Children's Hospital - R0A03",253,1480,0.92885375494071143,4.7430830039525688E-2,212,23,4,4,8,2]
["QOP","R0A","MANCHESTER UNIVERSITY NHS FOUNDATION TRUST","R0A05","St Mary's Hospital - R0A05",0,611,"NA","NA",0,0,0,0,0,0]
["QOP","R0A","MANCHESTER UNIVERSITY NHS FOUNDATION TRUST","R0A09","Trafford General Hospital - R0A09",69,1405,0.97101449275362317,0,64,3,2,0,0,0]
["QOP","R0A","MANCHESTER UNIVERSITY NHS FOUNDATION TRUST","R0A06","University Dental Hospital - R0A06",33,0,0.96969696969696972,0,24,8,1,0,0,0]
["QOP","R0A","MANCHESTER UNIVERSITY NHS FOUNDATION TRUST","R0A07","Wythenshawe Hospital - R0A07",649,4307,0.92295839753466868,4.3143297380585519E-2,509,90,17,12,16,5]
["QOP","RW6","PENNINE ACUTE HOSPITALS NHS TRUST","RW601","Fairfield General Hospital - RW601",152,4792,0.84868421052631582,9.2105263157894732E-2,110,19,7,5,9,2]
["QOP","RW6","PENNINE ACUTE HOSPITALS NHS TRUST","RW602","North Manchester General Hospital - RW602",168,6602,0.875,9.5238095238095233E-2,128,19,4,7,9,1]
["QOP","RW6","PENNINE ACUTE HOSPITALS NHS TRUST","RW604","Rochdale Infirmary - RW604",121,2871,0.78512396694214881,0.14049586776859505,73,22,8,9,8,1]
["QOP","RW6","PENNINE ACUTE HOSPITALS NHS TRUST","RW603","Royal Oldham Hospital - RW603",125,6217,0.81599999999999995,0.12,84,18,5,6,9,3]
["QOP","RM3","SALFORD ROYAL NHS FOUNDATION TRUST","RM301","Salford Royal - RM301",345,6523,0.89855072463768115,7.5362318840579715E-2,271,39,8,8,18,1]
["QOP","RWJ","STOCKPORT NHS FOUNDATION TRUST","RWJ09","Stepping Hill Hospital - RWJ09",944,4452,0.88877118644067798,5.2966101694915252E-2,735,104,43,23,27,12]
["QOP","RMP","TAMESIDE AND GLOSSOP INTEGRATED CARE NHS FOUNDATION TRUST","RMP01","Tameside General Hospital - RMP01",508,6185,0.83267716535433067,0.12598425196850394,361,62,20,22,42,1]
["QOP","RRF","WRIGHTINGTON, WIGAN AND LEIGH NHS FOUNDATION TRUST","RRF02","Royal Albert Edward Infirmary - RRF02",678,5005,0.86578171091445433,9.4395280235988199E-2,482,105,20,25,39,7]
["QOQ","RCD","HARROGATE AND DISTRICT NHS FOUNDATION TRUST","RCD01","Harrogate District Hospital - RCD01",355,1760,0.90704225352112677,4.507042253521127E-2,266,56,16,10,6,1]
["QOQ","RCD","HARROGATE AND DISTRICT NHS FOUNDATION TRUST","RCD02","Ripon and District Community Hospital - RCD02",0,14,"NA","NA",0,0,0,0,0,0]
["QOQ","RWA","HULL UNIVERSITY TEACHING HOSPITALS NHS TRUST","RWA01","Hull Royal Infirmary - RWA01",1396,6218,0.86174785100286533,7.4498567335243557E-2,989,214,69,46,58,20]
["QOQ","RJL","NORTHERN LINCOLNSHIRE AND GOOLE NHS FOUNDATION TRUST","RJL30","Diana, Princess Of Wales Hospital - RJL30",401,3392,0.81047381546134667,0.1172069825436409,263,62,23,18,29,6]
["QOQ","RJL","NORTHERN LINCOLNSHIRE AND GOOLE NHS FOUNDATION TRUST","RJL32","Scunthorpe General Hospital - RJL32",373,3005,0.76407506702412864,7.2386058981233251E-2,220,65,31,11,16,30]
["QOQ","RCB","YORK TEACHING HOSPITAL NHS FOUNDATION TRUST","RCBCA","Scarborough General Hospital - RCBCA",56,1124,0.8392857142857143,0.125,41,6,2,1,6,0]
["QOQ","RCB","YORK TEACHING HOSPITAL NHS FOUNDATION TRUST","RCB55","York Hospital - RCB55",313,3186,0.92971246006389774,3.8338658146964855E-2,251,40,9,4,8,1]
["QOX","RN3","GREAT WESTERN HOSPITALS NHS FOUNDATION TRUST","RN3TC","The Brunel NHS Treatment Centre - RN3TC",187,2196,0.93048128342245995,4.2780748663101602E-2,143,31,5,3,5,0]
["QOX","RN3","GREAT WESTERN HOSPITALS NHS FOUNDATION TRUST","RN325","The Great Western Hospital - RN325",115,1912,0.84347826086956523,9.5652173913043481E-2,74,23,7,3,8,0]
["QOX","RNZ","SALISBURY NHS FOUNDATION TRUST","RNZ02","Salisbury District Hospital - RNZ02",0,1751,"NA","NA",0,0,0,0,0,0]
["QPM","RNQ","KETTERING GENERAL HOSPITAL NHS FOUNDATION TRUST","RNQ51","Kettering General Hospital - RNQ51",203,4016,0.78325123152709364,0.14285714285714285,127,32,14,11,18,1]
["QPM","RNS","NORTHAMPTON GENERAL HOSPITAL NHS TRUST","RNS01","Northampton General Hospital (Acute) - RNS01",1002,5915,0.85628742514970058,0.10179640718562874,688,170,36,43,59,6]
["QR1","RTE","GLOUCESTERSHIRE HOSPITALS NHS FOUNDATION TRUST","RTE01","Cheltenham General Hospital - RTE01",199,679,0.94472361809045224,3.015075376884422E-2,160,28,5,3,3,0]
["QR1","RTE","GLOUCESTERSHIRE HOSPITALS NHS FOUNDATION TRUST","RTE03","Gloucestershire Royal Hospital - RTE03",604,2268,0.84768211920529801,9.602649006622517E-2,376,136,29,25,33,5]
["QRL","RN5","HAMPSHIRE HOSPITALS NHS FOUNDATION TRUST","RN542","Andover War Memorial Hospital - RN542",39,175,0.97435897435897434,0,36,2,1,0,0,0]
["QRL","RN5","HAMPSHIRE HOSPITALS NHS FOUNDATION TRUST","RN506","Basingstoke and North Hampshire Hospital - RN506",528,2107,0.89962121212121215,4.3560606060606064E-2,405,70,26,16,7,4]
["QRL","RN5","HAMPSHIRE HOSPITALS NHS FOUNDATION TRUST","RN541","Royal Hampshire County Hospital - RN541",438,1755,0.94063926940639264,2.9680365296803651E-2,377,35,12,9,4,1]
["QRL","R1F","ISLE OF WIGHT NHS TRUST","R1F01","St Mary's Hospital - R1F01",6,2168,1,0,6,0,0,0,0,0]
["QRL","RHU","PORTSMOUTH HOSPITALS UNIVERSITY NATIONAL HEALTH SERVICE TRUST","RHU03","Queen Alexandra Hospital - RHU03",965,5495,0.8849740932642487,6.8393782383419685E-2,735,119,42,26,40,3]
["QRL","RHU","PORTSMOUTH HOSPITALS UNIVERSITY NATIONAL HEALTH SERVICE TRUST","RHUXXX","WiC_MIU - RHUXXX",273,1151,0.95604395604395609,1.8315018315018316E-2,239,22,7,1,4,0]
["QRL","RHM","UNIVERSITY HOSPITAL SOUTHAMPTON NHS FOUNDATION TRUST","RHM01","Southampton General Hospital - RHM01",0,7880,"NA","NA",0,0,0,0,0,0]
["QRV","RQM","CHELSEA AND WESTMINSTER HOSPITAL NHS FOUNDATION TRUST","RQM01","Chelsea and Westminster Hospital - RQM01",179,1380,0.95530726256983245,3.3519553072625698E-2,150,21,2,1,5,0]
["QRV","RQM","CHELSEA AND WESTMINSTER HOSPITAL NHS FOUNDATION TRUST","RQM91","West Middlesex University Hospital - RQM91",220,2008,0.88181818181818183,9.0909090909090912E-2,155,39,5,4,16,1]
["QRV","RQM","CHELSEA AND WESTMINSTER HOSPITAL NHS FOUNDATION TRUST","RQMXXX","WiC_MIU - RQMXXX",343,2614,0.91545189504373181,5.5393586005830907E-2,277,37,10,7,12,0]
["QRV","RYJ","IMPERIAL COLLEGE HEALTHCARE NHS TRUST","RYJ02","Charing Cross Hospital - RYJ02",217,3733,0.88940092165898621,6.9124423963133647E-2,169,24,9,4,11,0]
["QRV","RYJ","IMPERIAL COLLEGE HEALTHCARE NHS TRUST","RYJ01","St Mary's Hospital (HQ) - RYJ01",238,4788,0.8571428571428571,0.1092436974789916,175,29,8,9,17,0]
["QRV","RYJ","IMPERIAL COLLEGE HEALTHCARE NHS TRUST","RYJ07","Western Eye Hospital - RYJ07",248,2173,0.97580645161290325,8.0645161290322578E-3,200,42,4,0,2,0]
["QRV","RYJ","IMPERIAL COLLEGE HEALTHCARE NHS TRUST","RYJXXX","WiC_MIU - RYJXXX",49,1767,0.87755102040816324,4.0816326530612242E-2,35,8,4,0,2,0]
["QRV","R1K","LONDON NORTH WEST UNIVERSITY HEALTHCARE NHS TRUST","R1K04","Ealing Hospital - R1K04",0,1000,"NA","NA",0,0,0,0,0,0]
["QRV","R1K","LONDON NORTH WEST UNIVERSITY HEALTHCARE NHS TRUST","R1K01","Northwick Park Hospital - R1K01",31,2713,0.70967741935483875,0.12903225806451613,10,12,0,0,4,5]
["QRV","R1K","LONDON NORTH WEST UNIVERSITY HEALTHCARE NHS TRUST","R1KXXX","WiC_MIU - R1KXXX",0,0,"NA","NA",0,0,0,0,0,0]
["QRV","RAS","THE HILLINGDON HOSPITALS NHS FOUNDATION TRUST","RAS01","Hillingdon Hospital - RAS01",272,2390,0.7904411764705882,0.14338235294117646,"*","*","*","*","*","*"]
["QRV","RAS","THE HILLINGDON HOSPITALS NHS FOUNDATION TRUST","RAS02","Mount Vernon Hospital Site - RAS02",1,39,"*","*","*","*","*","*","*","*"]
["QSL","RH5","SOMERSET NHS FOUNDATION TRUST","RH5A8","Musgrove Park Hospital - RH5A8",1,2639,"*","*","*","*","*","*","*","*"]
["QSL","RH5","SOMERSET NHS FOUNDATION TRUST","RH5XXX","Wic MIU - RH5XXX",0,4359,"NA","NA",0,0,0,0,0,0]
["QSL","RA4","YEOVIL DISTRICT HOSPITAL NHS FOUNDATION TRUST","RA430","Yeovil District Hospital - RA430",1,1861,"*","*","*","*","*","*","*","*"]
["QT1","RX1","NOTTINGHAM UNIVERSITY HOSPITALS NHS TRUST","RX1RA","Nottingham University Hospitals NHS Trust - Queen's Medical Centre Campus - RX1RA",0,6308,"NA","NA",0,0,0,0,0,0]
["QT1","RK5","SHERWOOD FOREST HOSPITALS NHS FOUNDATION TRUST","RK5BC","King's Mill Hospital - RK5BC",388,3895,0.88659793814432986,7.4742268041237112E-2,270,74,15,12,17,0]
["QT1","RK5","SHERWOOD FOREST HOSPITALS NHS FOUNDATION TRUST","RK5XXX","WiC_MIU - RK5XXX",561,1029,0.96613190730837795,1.2477718360071301E-2,454,88,11,2,5,1]
["QT6","REF","ROYAL CORNWALL HOSPITALS NHS TRUST","REF12","Royal Cornwall Hospital (Treliske) - REF12",377,2983,0.89920424403183019,6.8965517241379309E-2,273,66,11,13,13,1]
["QT6","REF","ROYAL CORNWALL HOSPITALS NHS TRUST","REF01","West Cornwall Hospital (Penzance) - REF01",93,655,0.967741935483871,3.2258064516129031E-2,77,13,0,2,1,0]
["QU9","RXQ","BUCKINGHAMSHIRE HEALTHCARE NHS TRUST","RXQ02","Stoke Mandeville Hospital - RXQ02",785,2923,0.89171974522292996,5.9872611464968153E-2,"*","*","*","*","*","*"]
["QU9","RTH","OXFORD UNIVERSITY HOSPITALS NHS FOUNDATION TRUST","RTH05","Horton General Hospital - RTH05",506,1672,0.90118577075098816,5.533596837944664E-2,376,80,19,14,14,3]
["QU9","RTH","OXFORD UNIVERSITY HOSPITALS NHS FOUNDATION TRUST","RTH08","John Radcliffe Hospital - RTH08",999,2975,0.87287287287287285,7.5075075075075076E-2,697,175,44,29,46,8]
["QU9","RHW","ROYAL BERKSHIRE NHS FOUNDATION TRUST","RHW03","King Edward Vii Hospital - RHW03",0,656,"NA","NA",0,0,0,0,0,0]
["QU9","RHW","ROYAL BERKSHIRE NHS FOUNDATION TRUST","RHW01","Royal Berkshire Hospital - RHW01",1,5188,"*","*","*","*","*","*","*","*"]
["QUA","RNA","THE DUDLEY GROUP NHS FOUNDATION TRUST","RNA01","Russells Hall Hospital - RNA01",779,3085,0.82284980744544289,6.8035943517329917E-2,519,122,20,20,33,65]
["QUA","RBK","WALSALL HEALTHCARE NHS TRUST","RBK02","Manor Hospital - RBK02",427,2259,0.81967213114754101,8.899297423887588E-2,262,88,29,16,22,10]
["QUE","RGT","CAMBRIDGE UNIVERSITY HOSPITALS NHS FOUNDATION TRUST","RGT01","Addenbrooke's Hospital - RGT01",874,3512,0.93707093821510301,2.9748283752860413E-2,720,99,22,13,13,7]
["QUE","RGN","NORTH WEST ANGLIA NHS FOUNDATION TRUST","RGN90","Hinchingbrooke Hospital - RGN90",99,2454,0.84848484848484851,9.0909090909090912E-2,68,16,5,6,3,1]
["QUE","RGN","NORTH WEST ANGLIA NHS FOUNDATION TRUST","RGN80","Peterborough City Hospital - RGN80",163,4676,0.85276073619631898,9.202453987730061E-2,111,28,7,6,9,2]
["QUY","RVJ","NORTH BRISTOL NHS TRUST","RVJ01","Southmead Hospital - RVJ01",943,3964,0.87486744432661723,7.6352067868504778E-2,702,123,34,26,46,12]
["QUY","RA7","UNIVERSITY HOSPITALS BRISTOL AND WESTON NHS FOUNDATION TRUST","RA708","Bristol Eye Hospital - RA708",0,1358,"NA","NA",0,0,0,0,0,0]
["QUY","RA7","UNIVERSITY HOSPITALS BRISTOL AND WESTON NHS FOUNDATION TRUST","RA723","Bristol Royal Hospital For Children - RA723",198,1524,0.94444444444444442,3.0303030303030304E-2,"*","*","*","*","*","*"]
["QUY","RA7","UNIVERSITY HOSPITALS BRISTOL AND WESTON NHS FOUNDATION TRUST","RA701","Bristol Royal Infirmary - RA701",208,2836,0.89903846153846156,5.7692307692307696E-2,159,28,5,5,7,4]
["QUY","RA7","UNIVERSITY HOSPITALS BRISTOL AND WESTON NHS FOUNDATION TRUST","RA7C2","Weston General Hospital - RA7C2",1,408,"*","*","*","*","*","*","*","*"]
["QVV","RBD","DORSET COUNTY HOSPITAL NHS FOUNDATION TRUST","RBD01","Dorset County Hospital - RBD01",714,1722,0.95658263305322133,2.3809523809523808E-2,568,115,13,10,7,1]
["QVV","R0D","UNIVERSITY HOSPITALS DORSET NHS FOUNDATION TRUST","R0D01","Poole Hospital - R0D01",740,2244,0.92567567567567566,4.1891891891891894E-2,"*","*","*","*","*","*"]
["QVV","R0D","UNIVERSITY HOSPITALS DORSET NHS FOUNDATION TRUST","R0D02","Royal Bourenmouth Hospital - R0D02",3,4037,"*","*","*","*","*","*","*","*"]
["QWE","RJ6","CROYDON HEALTH SERVICES NHS TRUST","RJ611","Croydon University Hospital - RJ611",800,6305,0.87875000000000003,7.8750000000000001E-2,597,106,33,18,45,1]
["QWE","RVR","EPSOM AND ST HELIER UNIVERSITY HOSPITALS NHS TRUST","RVR50","Epsom Hospital - RVR50",586,2225,0.93003412969283272,4.0955631399317405E-2,452,93,16,13,11,1]
["QWE","RVR","EPSOM AND ST HELIER UNIVERSITY HOSPITALS NHS TRUST","RVR05","St Helier Hospital - RVR05",532,3518,0.92293233082706772,4.3233082706766915E-2,423,68,13,6,17,5]
["QWE","RAX","KINGSTON HOSPITAL NHS FOUNDATION TRUST","RAX01","Kingston Hospital - RAX01",178,820,0.93258426966292129,3.9325842696629212E-2,137,29,5,1,6,0]
["QWE","RAX","KINGSTON HOSPITAL NHS FOUNDATION TRUST","RAXXXX","WiC_MIU - RAXXXX",633,2756,0.88783570300157977,7.266982622432859E-2,481,81,22,19,27,3]
["QWO","RCF","AIREDALE NHS FOUNDATION TRUST","RCF22","Airedale General Hospital - RCF22",374,2232,0.90106951871657759,5.8823529411764705E-2,287,50,12,11,11,3]
["QWO","RAE","BRADFORD TEACHING HOSPITALS NHS FOUNDATION TRUST","RAE01","Bradford Royal Infirmary - RAE01",11,6398,0.54545454545454541,9.0909090909090912E-2,3,3,4,1,0,0]
["QWO","RWY","CALDERDALE AND HUDDERSFIELD NHS FOUNDATION TRUST","RWY02","Calderdale Royal Hospital - RWY02",397,3867,0.91687657430730474,7.3047858942065488E-2,325,39,4,11,18,0]
["QWO","RWY","CALDERDALE AND HUDDERSFIELD NHS FOUNDATION TRUST","RWY01","Huddersfield Royal Infirmary - RWY01",391,3372,0.90281329923273657,4.6035805626598467E-2,294,59,16,6,12,4]
["QWO","RR8","LEEDS TEACHING HOSPITALS NHS TRUST","RR801","Leeds General Infirmary - RR801",1434,5522,0.9191073919107392,4.3933054393305436E-2,1074,244,49,32,31,4]
["QWO","RR8","LEEDS TEACHING HOSPITALS NHS TRUST","RR813","St James's University Hospital - RR813",947,3469,0.8542766631467793,9.714889123548047E-2,600,209,43,37,55,3]
["QWO","RXF","MID YORKSHIRE HOSPITALS NHS TRUST","RXF10","Dewsbury and District Hospital - RXF10",9,2677,0.77777777777777779,0.22222222222222221,7,0,0,0,2,0]
["QWO","RXF","MID YORKSHIRE HOSPITALS NHS TRUST","RXF05","Pinderfields General Hospital - RXF05",5,3646,0.2,0.8,"*","*","*","*","*","*"]
["QWO","RXF","MID YORKSHIRE HOSPITALS NHS TRUST","RXF03","Pontefract General Infirmary - RXF03",1,1450,"*","*","*","*","*","*","*","*"]
["QWU","RLT","GEORGE ELIOT HOSPITAL NHS TRUST","RLT01","George Eliot Hospital - Acute Services - RLT01",1317,3320,0.8959757023538345,6.7577828397873962E-2,974,206,36,36,53,12]
["QWU","RJC","SOUTH WARWICKSHIRE NHS FOUNDATION TRUST","RJC02","Warwick Hospital - RJC02",3,1463,"*","*","*","*","*","*","*","*"]
["QWU","RJC","SOUTH WARWICKSHIRE NHS FOUNDATION TRUST","RJCXXX","WiC_MIU - RJCXXX",0,0,"NA","NA",0,0,0,0,0,0]
["QWU","RKB","UNIVERSITY HOSPITALS COVENTRY AND WARWICKSHIRE NHS TRUST","RKB03","Hospital Of St Cross - RKB03",207,1054,0.88888888888888884,6.280193236714976E-2,"*","*","*","*","*","*"]
["QWU","RKB","UNIVERSITY HOSPITALS COVENTRY AND WARWICKSHIRE NHS TRUST","RKB01","University Hospital (Coventry) - RKB01",846,5586,0.87943262411347523,6.8557919621749411E-2,608,136,33,24,34,11]
["QWU","RKB","UNIVERSITY HOSPITALS COVENTRY AND WARWICKSHIRE NHS TRUST","RKBXXX","WiC_MIU - RKBXXX",101,2742,0.67326732673267331,0.12871287128712872,"*","*","*","*","*","*"]
["QXU","RA2","ROYAL SURREY COUNTY HOSPITAL NHS FOUNDATION TRUST","RA201","Royal Surrey County Hospital - RA201",416,1212,0.93028846153846156,5.2884615384615384E-2,327,60,7,12,10,0]
["QXU","RA2","ROYAL SURREY COUNTY HOSPITAL NHS FOUNDATION TRUST","RA2XXX","WiC_MIU - RA2XXX",77,219,0.96103896103896103,1.2987012987012988E-2,67,7,2,1,0,0]
["QXU","RTP","SURREY AND SUSSEX HEALTHCARE NHS TRUST","RTP04","East Surrey Hospital - RTP04",444,4879,0.9144144144144144,6.5315315315315314E-2,350,56,8,15,14,1]
["QYG","RBS","ALDER HEY CHILDREN'S NHS FOUNDATION TRUST","RBS25","Alder Hey Children's NHS - RBS25",206,3064,0.90776699029126218,6.3106796116504854E-2,168,19,5,7,6,1]
["QYG","RJR","COUNTESS OF CHESTER HOSPITAL NHS FOUNDATION TRUST","RJR05","Countess Of Chester Hospital - RJR05",631,3078,0.91917591125198095,5.388272583201268E-2,526,54,13,15,19,4]
["QYG","RJN","EAST CHESHIRE NHS TRUST","RJN71","Macclesfield District General Hospital - RJN71",513,1860,0.91033138401559455,5.4580896686159841E-2,409,58,16,10,18,2]
["QYG","REM","LIVERPOOL UNIVERSITY HOSPITALS NHS FOUNDATION TRUST","REMRQ","Royal Liverpool University Hospital - REMRQ",629,2918,0.7933227344992051,0.13513513513513514,393,106,32,32,53,13]
["QYG","REM","LIVERPOOL UNIVERSITY HOSPITALS NHS FOUNDATION TRUST","REM21","University Hospital Aintree - REM21",737,3810,0.83717774762550878,0.11261872455902307,518,99,30,22,61,7]
["QYG","REP","LIVERPOOL WOMEN'S NHS FOUNDATION TRUST","REP01","Liverpool Womens Hospital - REP01",118,951,0.83050847457627119,9.3220338983050849E-2,75,23,9,8,3,0]
["QYG","RBT","MID CHESHIRE HOSPITALS NHS FOUNDATION TRUST","RBT20","Leighton Hospital - RBT20",700,3484,0.92571428571428571,4.5714285714285714E-2,546,102,18,15,17,2]
["QYG","RBT","MID CHESHIRE HOSPITALS NHS FOUNDATION TRUST","RBTXXX","WiC_MIU - RBTXXX",219,877,0.9634703196347032,1.8264840182648401E-2,189,22,3,0,4,1]
["QYG","RVY","SOUTHPORT AND ORMSKIRK HOSPITAL NHS TRUST","RVY02","Ormskirk and District General Hospital - RVY02",123,676,0.98373983739837401,8.130081300813009E-3,113,8,1,1,0,0]
["QYG","RVY","SOUTHPORT AND ORMSKIRK HOSPITAL NHS TRUST","RVY01","Southport and Formby District General Hospital - RVY01",579,2033,0.94300518134715028,3.9723661485319514E-2,461,85,9,14,9,1]
["QYG","RBN","ST HELENS AND KNOWSLEY TEACHING HOSPITALS NHS TRUST","RBN01","Whiston Hospital - RBN01",627,4015,0.89792663476874002,4.9441786283891544E-2,475,88,29,13,18,4]
["QYG","RWW","WARRINGTON AND HALTON TEACHING HOSPITALS NHS FOUNDATION TRUST","RWWHG","Halton Hospital - RWWHG",268,1177,0.92910447761194026,5.5970149253731345E-2,220,29,4,5,10,0]
["QYG","RWW","WARRINGTON AND HALTON TEACHING HOSPITALS NHS FOUNDATION TRUST","RWWWH","Warrington Hospital - RWWWH",869,869,0.85270425776754888,9.2059838895281937E-2,608,133,43,24,56,5]
["QYG","RBL","WIRRAL UNIVERSITY TEACHING HOSPITAL NHS FOUNDATION TRUST","RBL14","Arrowe Park Hospital - RBL14",541,3576,0.83918669131238444,9.0573012939001843E-2,376,78,31,17,32,7]

{"sheet":"BS","index":5,"n_rows":218,"n_cols":33,"rows_kept":218,"cut":false,"hidden":true,"merged":[]}
[null,"Sort","Region (LO) Code","Region (LO) name","Trust code","Trust name","Site Code","Site Name",null,"Sort Lists:","Sort range…","Sort range…","Sort range…","Reference Region List:","Code…","Name…","Linked Region List:","Code…","Name…","Reference Lists:","Code…","Code…","Name…","Code…","Name…","Trusts Linked Lists:","Code…","Name…","Sites Linked Lists:","Code…","Name…","Code…","Name…"]
["Region (LO)",1,1,1,"-","-","-","-",null,null,"Region (LO) Code","Region (LO) Code","Region (LO) Code",null,"Q72","NHS England Yorkshire & Humber",null,"Q71","NHS England Central Midlands",null,"QE1","RXR","EAST LANCASHIRE HOSPITALS NHS TRUST","RXR20","Royal Blackburn Hospital - RXR20",null,"R0A","AIREDALE NHS FOUNDATION TRUST",null,"R0A","AIREDALE NHS FOUNDATION TRUST","R0A02","Addenbrooke's Hospital - RGT01"]
["Trusts",1,1,1,1,1,"-","-",null,null,"Region (Local Office)","Trust Code","Trust Code",null,"Q74","NHS England Cumbria & North East",null,"Q72","NHS England Cheshire & Merseyside",null,"QE1","RXN","LANCASHIRE TEACHING HOSPITALS NHS FOUNDATION TRUST","RXN01","Chorley and South Ribble Hospital - RXN01",null,"R0B","ALDER HEY CHILDREN'S NHS FOUNDATION TRUST",null,"R0B","ALDER HEY CHILDREN'S NHS FOUNDATION TRUST","R0A03","Airedale General Hospital - RCF22"]
["Site",1,1,1,1,1,1,1,null,null,"Total Responses","Trust Name","Trust Name",null,"Q75","NHS England Cheshire & Merseyside",null,"Q74","NHS England Cumbria & North East",null,"QE1","RXN","LANCASHIRE TEACHING HOSPITALS NHS FOUNDATION TRUST","RXN02","Royal Preston Hospital - RXN02",null,"R0D","BARKING, HAVERING AND REDBRIDGE UNIVERSITY HOSPITALS NHS TRUST",null,"R0D","BARKING, HAVERING AND REDBRIDGE UNIVERSITY HOSPITALS NHS TRUST","R0A04","Alder Hey Children's NHS - RBS25"]
[null,null,null,null,null,null,null,null,null,null,"Total Eligible","Total Responses","Site Code",null,"Q83","NHS England Greater Manchester",null,"Q75","NHS England East",null,"QE1","RTX","UNIVERSITY HOSPITALS OF MORECAMBE BAY NHS FOUNDATION TRUST","RTXBU","Furness General Hospital - RTXBU",null,"R1F","BARNSLEY HOSPITAL NHS FOUNDATION TRUST",null,"R1F","BARNSLEY HOSPITAL NHS FOUNDATION TRUST","R0A05","Alexandra Hospital - RWP01"]
[null,null,null,null,null,null,null,null,null,null,"Percentage Positive","Total Eligible","Site Name",null,"Q84","NHS England Lancashire",null,"Q76","NHS England Greater Manchester",null,"QE1","RTX","UNIVERSITY HOSPITALS OF MORECAMBE BAY NHS FOUNDATION TRUST","RTX02","Royal Lancaster Infirmary - RTX02",null,"R1H","BARTS HEALTH NHS TRUST",null,"R1H","BARTS HEALTH NHS TRUST","R0A06","Andover War Memorial Hospital - RN542"]
[null,null,null,null,null,null,null,null,null,null,"Percentage Negative","Percentage Positive","Total Responses",null,"Q76","NHS England North Midlands",null,"Q77","NHS England Hampshire, Isle Of Wight & Thames Valley",null,"QE1","RTX","UNIVERSITY HOSPITALS OF MORECAMBE BAY NHS FOUNDATION TRUST","RTXBW","Westmorland General Hospital - RTXBW",null,"R1K","BEDFORDSHIRE HOSPITALS NHS FOUNDATION TRUST",null,"R1K","BEDFORDSHIRE HOSPITALS NHS FOUNDATION TRUST","R0A07","Arrowe Park Hospital - RBL14"]
[null,null,null,null,null,null,null,null,null,null,"Very Good","Percentage Negative","Total Eligible",null,"Q77","NHS England West Midlands",null,"Q78","NHS England Kent, Surrey & Sussex",null,"QF7","RFF","BARNSLEY HOSPITAL NHS FOUNDATION TRUST","RFFAA","Barnsley Hospital NHS Foundation Trust HQ - RFFAA",null,"RA2","BIRMINGHAM WOMEN'S AND CHILDREN'S NHS FOUNDATION TRUST",null,"RA2","BIRMINGHAM WOMEN'S AND CHILDREN'S NHS FOUNDATION TRUST","R0A09","Barnsley Hospital NHS Foundation Trust HQ - RFFAA"]
[null,null,null,null,null,null,null,null,null,null,"Good","Very Good","Percentage Positive",null,"Q78","NHS England Central Midlands",null,"Q79","NHS England Lancashire",null,"QF7","RP5","DONCASTER AND BASSETLAW TEACHING HOSPITALS NHS FOUNDATION TRUST","RP5BA","Bassetlaw Hospital - RP5BA",null,"RA4","BOLTON NHS FOUNDATION TRUST",null,"RA4","BOLTON NHS FOUNDATION TRUST","R0B01","Basildon Hospital - RAJ12"]
[null,null,null,null,null,null,null,null,null,null,"Neither Good or Bad","Good","Percentage Negative",null,"Q79","NHS England East",null,"Q83","NHS England London",null,"QF7","RP5","DONCASTER AND BASSETLAW TEACHING HOSPITALS NHS FOUNDATION TRUST","RP5DR","Doncaster Royal Infirmary - RP5DR",null,"RA7","BRADFORD TEACHING HOSPITALS NHS FOUNDATION TRUST",null,"RA7","BRADFORD TEACHING HOSPITALS NHS FOUNDATION TRUST","R0B0Q","Basingstoke and North Hampshire Hospital - RN506"]
[null,null,null,null,null,null,null,null,null,null,"Bad","Neither Good or Bad","Very Good",null,"Q86","NHS England South West North",null,"Q84","NHS England North Midlands",null,"QF7","RP5","DONCASTER AND BASSETLAW TEACHING HOSPITALS NHS FOUNDATION TRUST","RP5MM","Montagu Hospital - RP5MM",null,"RAE","BUCKINGHAMSHIRE HEALTHCARE NHS TRUST",null,"RAE","BUCKINGHAMSHIRE HEALTHCARE NHS TRUST","R0B0X","Bassetlaw Hospital - RP5BA"]
[null,null,null,null,null,null,null,null,null,null,"Very Bad","Bad","Good",null,"Q87","NHS England Hampshire, Isle Of Wight & Thames Valley",null,"Q85","NHS England South West North",null,"QF7","RCU","SHEFFIELD CHILDREN'S NHS FOUNDATION TRUST","RCUEF","Sheffield Children's Hospital - RCUEF",null,"RAJ","CALDERDALE AND HUDDERSFIELD NHS FOUNDATION TRUST",null,"RAJ","CALDERDALE AND HUDDERSFIELD NHS FOUNDATION TRUST","R0BXXX","Bedford Hospital South Wing - RC979"]
[null,null,null,null,null,null,null,null,null,null,"Don't Know","Very Bad","Neither Good or Bad",null,"Q88","NHS England Kent, Surrey & Sussex",null,"Q86","NHS England South West South",null,"QF7","RHQ","SHEFFIELD TEACHING HOSPITALS NHS FOUNDATION TRUST","RHQNG","Northern General Hospital - RHQNG",null,"RAL","CAMBRIDGE UNIVERSITY HOSPITALS NHS FOUNDATION TRUST",null,"RAL","CAMBRIDGE UNIVERSITY HOSPITALS NHS FOUNDATION TRUST","R0D01","Birmingham Children's Hospital - RQ301"]
[null,null,null,null,null,null,null,null,null,null,null,"Don't Know","Bad",null,"Q85","NHS England South West South",null,"Q87","NHS England West Midlands",null,"QF7","RHQ","SHEFFIELD TEACHING HOSPITALS NHS FOUNDATION TRUST","RHQHH","Royal Hallamshire Hospital - RHQHH",null,"RAS","CHELSEA AND WESTMINSTER HOSPITAL NHS FOUNDATION TRUST",null,"RAS","CHELSEA AND WESTMINSTER HOSPITAL NHS FOUNDATION TRUST","R0D02","Bradford Royal Infirmary - RAE01"]
[null,null,null,null,null,null,null,null,null,null,null,"SMS/Text","Very Bad",null,"Q71","NHS England London",null,"Q88","NHS England Yorkshire & Humber",null,"QF7","RFR","THE ROTHERHAM NHS FOUNDATION TRUST","RFRPA","Rotherham District General Hospital - RFRPA",null,"RAX","CHESTERFIELD ROYAL HOSPITAL NHS FOUNDATION TRUST",null,"RAX","CHESTERFIELD ROYAL HOSPITAL NHS FOUNDATION TRUST","R1F01","Bristol Eye Hospital - RA708"]
[null,null,null,null,null,null,null,null,null,null,null,"Smartphone App/tablet/kiosk before or at point of discharge","Don't Know",null,null,null,null,null,null,null,"QGH","RWP","WORCESTERSHIRE ACUTE HOSPITALS NHS TRUST","RWP01","Alexandra Hospital - RWP01",null,"RBD","COUNTESS OF CHESTER HOSPITAL NHS FOUNDATION TRUST",null,"RBD","COUNTESS OF CHESTER HOSPITAL NHS FOUNDATION TRUST","R1H12","Bristol Royal Hospital For Children - RA723"]
[null,null,null,null,null,null,null,null,null,null,null,"Paper / postcard  before or at point of discharge",null,null,null,null,null,null,null,null,"QGH","RWP","WORCESTERSHIRE ACUTE HOSPITALS NHS TRUST","RWP31","Kidderminster Hospital - RWP31",null,"RBK","COUNTY DURHAM AND DARLINGTON NHS FOUNDATION TRUST",null,"RBK","COUNTY DURHAM AND DARLINGTON NHS FOUNDATION TRUST","R1HKH","Bristol Royal Infirmary - RA701"]
[null,null,null,null,null,null,null,null,null,null,null,"Paper / postcard  after discharge",null,null,null,null,null,null,null,null,"QGH","RWP","WORCESTERSHIRE ACUTE HOSPITALS NHS TRUST","RWP50","Worcestershire Royal Hospital - RWP50",null,"RBL","CROYDON HEALTH SERVICES NHS TRUST",null,"RBL","CROYDON HEALTH SERVICES NHS TRUST","R1HM0","Buckland Hospital - RVV02"]
[null,null,null,null,null,null,null,null,null,null,null,"Telephone survey after discharge",null,null,null,null,null,null,null,null,"QGH","RLQ","WYE VALLEY NHS TRUST","RLQ01","Hereford County Hospital - RLQ01",null,"RBN","DARTFORD AND GRAVESHAM NHS TRUST",null,"RBN","DARTFORD AND GRAVESHAM NHS TRUST","R1HNH","Calderdale Royal Hospital - RWY02"]
[null,null,null,null,null,null,null,null,null,null,null,"Online survey after discharge",null,null,null,null,null,null,null,null,"QH8","RAJ","MID AND SOUTH ESSEX NHS FOUNDATION TRUST","RAJ12","Basildon Hospital - RAJ12",null,"RBS","DONCASTER AND BASSETLAW TEACHING HOSPITALS NHS FOUNDATION TRUST",null,"RBS","DONCASTER AND BASSETLAW TEACHING HOSPITALS NHS FOUNDATION TRUST","R1HXXX","Charing Cross Hospital - RYJ02"]
[null,null,null,null,null,null,null,null,null,null,null,"Other",null,null,null,null,null,null,null,null,"QH8","RAJ","MID AND SOUTH ESSEX NHS FOUNDATION TRUST","RAJ32","Mid Essex Hospital - RAJ32",null,"RBT","DORSET COUNTY HOSPITAL NHS FOUNDATION TRUST",null,"RBT","DORSET COUNTY HOSPITAL NHS FOUNDATION TRUST","R1K01","Chelsea and Westminster Hospital - RQM01"]
[null,null,null,null,null,null,null,null,null,null,null,null,null,null,null,null,null,null,null,null,"QH8","RAJ","MID AND SOUTH ESSEX NHS FOUNDATION TRUST","RAJ01","Southend Hospital - RAJ01",null,"RBZ","EAST AND NORTH HERTFORDSHIRE NHS TRUST",null,"RBZ","EAST AND NORTH HERTFORDSHIRE NHS TRUST","R1K04","Cheltenham General Hospital - RTE01"]
[null,null,null,null,null,null,null,null,null,null,null,null,null,null,null,null,null,null,null,null,"QHG","RC9","BEDFORDSHIRE HOSPITALS NHS FOUNDATION TRUST","RC979","Bedford Hospital South Wing - RC979",null,"RC9","EAST CHESHIRE NHS TRUST",null,"RC9","EAST CHESHIRE NHS TRUST","R1KXXX","Chesterfield Royal Hospital - RFSDA"]
[null,null,null,null,null,null,null,null,null,null,null,null,null,null,null,null,null,null,null,null,"QHG","RC9","BEDFORDSHIRE HOSPITALS NHS FOUNDATION TRUST","RC971","Luton and Dunstable Hospital - RC971",null,"RCB","EAST KENT HOSPITALS UNIVERSITY NHS FOUNDATION TRUST",null,"RCB","EAST KENT HOSPITALS UNIVERSITY NHS FOUNDATION TRUST","RA201","Chorley and South Ribble Hospital - RXN01"]
[null,null,null,null,null,null,null,null,null,null,null,null,null,null,null,null,null,null,null,null,"QHG","RD8","MILTON KEYNES UNIVERSITY HOSPITAL NHS FOUNDATION TRUST","RD816","Milton Keynes Hospital - RD816",null,"RCD","EAST LANCASHIRE HOSPITALS NHS TRUST",null,"RCD","EAST LANCASHIRE HOSPITALS NHS TRUST","RA2XXX","Colchester General Hospital - RDEE4"]
[null,null,null,null,null,null,null,null,null,null,null,null,null,null,null,null,null,null,null,null,"QHL","RQ3","BIRMINGHAM WOMEN'S AND CHILDREN'S NHS FOUNDATION TRUST","RQ301","Birmingham Children's Hospital - RQ301",null,"RCF","EAST SUFFOLK AND NORTH ESSEX NHS FOUNDATION TRUST",null,"RCF","EAST SUFFOLK AND NORTH ESSEX NHS FOUNDATION TRUST","RA430","Conquest Hospital - RXC01"]
[null,null,null,null,null,null,null,null,null,null,null,null,null,null,null,null,null,null,null,null,"QHL","RRK","UNIVERSITY HOSPITALS BIRMINGHAM NHS FOUNDATION TRUST","RRK98","Good Hope Hospital - RRK98",null,"RCU","EAST SUSSEX HEALTHCARE NHS TRUST",null,"RCU","EAST SUSSEX HEALTHCARE NHS TRUST","RA701","Countess Of Chester Hospital - RJR05"]
[null,null,null,null,null,null,null,null,null,null,null,null,null,null,null,null,null,null,null,null,"QHL","RRK","UNIVERSITY HOSPITALS BIRMINGHAM NHS FOUNDATION TRUST","RRK97","Heartlands Hospital - RRK97",null,"RCX","EPSOM AND ST HELIER UNIVERSITY HOSPITALS NHS TRUST",null,"RCX","EPSOM AND ST HELIER UNIVERSITY HOSPITALS NHS TRUST","RA708","County Hospital - RJE09"]
[null,null,null,null,null,null,null,null,null,null,null,null,null,null,null,null,null,null,null,null,"QHL","RRK","UNIVERSITY HOSPITALS BIRMINGHAM NHS FOUNDATION TRUST","RRK15","Queen Elizabeth Hospital Birmingham - RRK15",null,"RD8","FRIMLEY HEALTH NHS FOUNDATION TRUST",null,"RD8","FRIMLEY HEALTH NHS FOUNDATION TRUST","RA723","Croydon University Hospital - RJ611"]
[null,null,null,null,null,null,null,null,null,null,null,null,null,null,null,null,null,null,null,null,"QHL","RRK","UNIVERSITY HOSPITALS BIRMINGHAM NHS FOUNDATION TRUST","RRK99","Solihull Hospital - RRK99",null,"RDE","GATESHEAD HEALTH NHS FOUNDATION TRUST",null,"RDE","GATESHEAD HEALTH NHS FOUNDATION TRUST","RA7C2","Cumberland Infirmary - RNN62"]
[null,null,null,null,null,null,null,null,null,null,null,null,null,null,null,null,null,null,null,null,"QHM","RXP","COUNTY DURHAM AND DARLINGTON NHS FOUNDATION TRUST","RXPXXX","WiC_MIU - RXPXXX",null,"RDU","GEORGE ELIOT HOSPITAL NHS TRUST",null,"RDU","GEORGE ELIOT HOSPITAL NHS TRUST","RAE01","Darent Valley Hospital - RN707"]
[null,null,null,null,null,null,null,null,null,null,null,null,null,null,null,null,null,null,null,null,"QHM","RR7","GATESHEAD HEALTH NHS FOUNDATION TRUST","RR7EN","Queen Elizabeth Hospital - RR7EN",null,"REF","GLOUCESTERSHIRE HOSPITALS NHS FOUNDATION TRUST",null,"REF","GLOUCESTERSHIRE HOSPITALS NHS FOUNDATION TRUST","RAJ01","Derriford Hospital - RK950"]
[null,null,null,null,null,null,null,null,null,null,null,null,null,null,null,null,null,null,null,null,"QHM","RNN","NORTH CUMBRIA INTEGRATED CARE NHS FOUNDATION TRUST","RNN62","Cumberland Infirmary - RNN62",null,"REM","GREAT WESTERN HOSPITALS NHS FOUNDATION TRUST",null,"REM","GREAT WESTERN HOSPITALS NHS FOUNDATION TRUST","RAJ12","Dewsbury and District Hospital - RXF10"]
[null,null,null,null,null,null,null,null,null,null,null,null,null,null,null,null,null,null,null,null,"QHM","RNN","NORTH CUMBRIA INTEGRATED CARE NHS FOUNDATION TRUST","RNNBX","West Cumberland Hospital - RNNBX",null,"REP","GUY'S AND ST THOMAS' NHS FOUNDATION TRUST",null,"REP","GUY'S AND ST THOMAS' NHS FOUNDATION TRUST","RAJ32","Diana, Princess Of Wales Hospital - RJL30"]
[null,null,null,null,null,null,null,null,null,null,null,null,null,null,null,null,null,null,null,null,"QHM","RVW","NORTH TEES AND HARTLEPOOL NHS FOUNDATION TRUST","RVWAE","University Hospital Of North Tees - RVWAE",null,"RF4","HAMPSHIRE HOSPITALS NHS FOUNDATION TRUST",null,"RF4","HAMPSHIRE HOSPITALS NHS FOUNDATION TRUST","RALXXX","Doncaster Royal Infirmary - RP5DR"]
[null,null,null,null,null,null,null,null,null,null,null,null,null,null,null,null,null,null,null,null,"QHM","RTF","NORTHUMBRIA HEALTHCARE NHS FOUNDATION TRUST","RTF86","The Northumbria - RTF86",null,"RFF","HARROGATE AND DISTRICT NHS FOUNDATION TRUST",null,"RFF","HARROGATE AND DISTRICT NHS FOUNDATION TRUST","RAS01","Dorset County Hospital - RBD01"]
[null,null,null,null,null,null,null,null,null,null,null,null,null,null,null,null,null,null,null,null,"QHM","RTF","NORTHUMBRIA HEALTHCARE NHS FOUNDATION TRUST","RTFXXX","WiC_MIU - RTFXXX",null,"RFR","HULL UNIVERSITY TEACHING HOSPITALS NHS TRUST",null,"RFR","HULL UNIVERSITY TEACHING HOSPITALS NHS TRUST","RAS02","Ealing Hospital - R1K04"]
[null,null,null,null,null,null,null,null,null,null,null,null,null,null,null,null,null,null,null,null,"QHM","RTR","SOUTH TEES HOSPITALS NHS FOUNDATION TRUST","RTR45","Friarage Hospital Site - RTR45",null,"RFS","IMPERIAL COLLEGE HEALTHCARE NHS TRUST",null,"RFS","IMPERIAL COLLEGE HEALTHCARE NHS TRUST","RAX01","East Surrey Hospital - RTP04"]
[null,null,null,null,null,null,null,null,null,null,null,null,null,null,null,null,null,null,null,null,"QHM","RTR","SOUTH TEES HOSPITALS NHS FOUNDATION TRUST","RTRAT","The James Cook University Hospital - RTRAT",null,"RGN","ISLE OF WIGHT NHS TRUST",null,"RGN","ISLE OF WIGHT NHS TRUST","RAXXXX","Eastbourne District General Hospital - RXC02"]
[null,null,null,null,null,null,null,null,null,null,null,null,null,null,null,null,null,null,null,null,"QHM","RTR","SOUTH TEES HOSPITALS NHS FOUNDATION TRUST","RTRXXX","WiC_MIU - RTRXXX",null,"RGP","JAMES PAGET UNIVERSITY HOSPITALS NHS FOUNDATION TRUST",null,"RGP","JAMES PAGET UNIVERSITY HOSPITALS NHS FOUNDATION TRUST","RBD01","Epsom Hospital - RVR50"]
[null,null,null,null,null,null,null,null,null,null,null,null,null,null,null,null,null,null,null,null,"QHM","R0B","SOUTH TYNESIDE AND SUNDERLAND NHS FOUNDATION TRUST","R0B0Q","South Tyneside District Hospital - R0B0Q",null,"RGR","KETTERING GENERAL HOSPITAL NHS FOUNDATION TRUST",null,"RGR","KETTERING GENERAL HOSPITAL NHS FOUNDATION TRUST","RBK02","Fairfield General Hospital - RW601"]
[null,null,null,null,null,null,null,null,null,null,null,null,null,null,null,null,null,null,null,null,"QHM","R0B","SOUTH TYNESIDE AND SUNDERLAND NHS FOUNDATION TRUST","R0B0X","Sunderland Eye Infirmary – R0B0X",null,"RGT","KING'S COLLEGE HOSPITAL NHS FOUNDATION TRUST",null,"RGT","KING'S COLLEGE HOSPITAL NHS FOUNDATION TRUST","RBL14","Friarage Hospital Site - RTR45"]
[null,null,null,null,null,null,null,null,null,null,null,null,null,null,null,null,null,null,null,null,"QHM","R0B","SOUTH TYNESIDE AND SUNDERLAND NHS FOUNDATION TRUST","R0B01","Sunderland Royal Hospital – R0B01",null,"RH5","KINGSTON HOSPITAL NHS FOUNDATION TRUST",null,"RH5","KINGSTON HOSPITAL NHS FOUNDATION TRUST","RBN01","Frimley Park Hospital - RDU01"]
[null,null,null,null,null,null,null,null,null,null,null,null,null,null,null,null,null,null,null,null,"QHM","R0B","SOUTH TYNESIDE AND SUNDERLAND NHS FOUNDATION TRUST","R0BXXX","WiC_MIU - R0BXXX",null,"RH8","LANCASHIRE TEACHING HOSPITALS NHS FOUNDATION TRUST",null,"RH8","LANCASHIRE TEACHING HOSPITALS NHS FOUNDATION TRUST","RBS25","Furness General Hospital - RTXBU"]
[null,null,null,null,null,null,null,null,null,null,null,null,null,null,null,null,null,null,null,null,"QHM","RTD","THE NEWCASTLE UPON TYNE HOSPITALS NHS FOUNDATION TRUST","RTD02","The Royal Victoria Infirmary - RTD02",null,"RHM","LEEDS TEACHING HOSPITALS NHS TRUST",null,"RHM","LEEDS TEACHING HOSPITALS NHS TRUST","RBT20","George Eliot Hospital - Acute Services - RLT01"]
[null,null,null,null,null,null,null,null,null,null,null,null,null,null,null,null,null,null,null,null,"QJ2","RFS","CHESTERFIELD ROYAL HOSPITAL NHS FOUNDATION TRUST","RFSDA","Chesterfield Royal Hospital - RFSDA",null,"RHQ","LEWISHAM AND GREENWICH NHS TRUST",null,"RHQ","LEWISHAM AND GREENWICH NHS TRUST","RBTXXX","Gloucestershire Royal Hospital - RTE03"]
[null,null,null,null,null,null,null,null,null,null,null,null,null,null,null,null,null,null,null,null,"QJ2","RTG","UNIVERSITY HOSPITALS OF DERBY AND BURTON NHS FOUNDATION TRUST","RTG02","Queen's Hospital, Burton Upon Trent - RTG02",null,"RHU","LIVERPOOL UNIVERSITY HOSPITALS NHS FOUNDATION TRUST",null,"RHU","LIVERPOOL UNIVERSITY HOSPITALS NHS FOUNDATION TRUST","RBZ12","Good Hope Hospital - RRK98"]
[null,null,null,null,null,null,null,null,null,null,null,null,null,null,null,null,null,null,null,null,"QJ2","RTG","UNIVERSITY HOSPITALS OF DERBY AND BURTON NHS FOUNDATION TRUST","RTGFG","Royal Derby Hospital - RTGFG",null,"RHW","LIVERPOOL WOMEN'S NHS FOUNDATION TRUST",null,"RHW","LIVERPOOL WOMEN'S NHS FOUNDATION TRUST","RC971","Grantham and District Hospital - RWDLP"]
[null,null,null,null,null,null,null,null,null,null,null,null,null,null,null,null,null,null,null,null,"QJ2","RTG","UNIVERSITY HOSPITALS OF DERBY AND BURTON NHS FOUNDATION TRUST","RTG54","Samuel Johnson - RTG54",null,"RJ1","LONDON NORTH WEST UNIVERSITY HEALTHCARE NHS TRUST",null,"RJ1","LONDON NORTH WEST UNIVERSITY HEALTHCARE NHS TRUST","RC979","Halton Hospital - RWWHG"]
[null,null,null,null,null,null,null,null,null,null,null,null,null,null,null,null,null,null,null,null,"QJ2","RTG","UNIVERSITY HOSPITALS OF DERBY AND BURTON NHS FOUNDATION TRUST","RTG50","Sir Robert Peel - RTG50",null,"RJ2","MAIDSTONE AND TUNBRIDGE WELLS NHS TRUST",null,"RJ2","MAIDSTONE AND TUNBRIDGE WELLS NHS TRUST","RCB55","Harrogate District Hospital - RCD01"]
[null,null,null,null,null,null,null,null,null,null,null,null,null,null,null,null,null,null,null,null,"QJG","RDE","EAST SUFFOLK AND NORTH ESSEX NHS FOUNDATION TRUST","RDEE4","Colchester General Hospital - RDEE4",null,"RJ6","MANCHESTER UNIVERSITY NHS FOUNDATION TRUST",null,"RJ6","MANCHESTER UNIVERSITY NHS FOUNDATION TRUST","RCBCA","Heartlands Hospital - RRK97"]
[null,null,null,null,null,null,null,null,null,null,null,null,null,null,null,null,null,null,null,null,"QJG","RDE","EAST SUFFOLK AND NORTH ESSEX NHS FOUNDATION TRUST","RDE03","Ipswich Hospital - RDE03",null,"RJC","MEDWAY NHS FOUNDATION TRUST",null,"RJC","MEDWAY NHS FOUNDATION TRUST","RCD01","Hereford County Hospital - RLQ01"]
[null,null,null,null,null,null,null,null,null,null,null,null,null,null,null,null,null,null,null,null,"QJG","RGR","WEST SUFFOLK NHS FOUNDATION TRUST","RGR50","West Suffolk Hospital - RGR50",null,"RJE","MID AND SOUTH ESSEX NHS FOUNDATION TRUST",null,"RJE","MID AND SOUTH ESSEX NHS FOUNDATION TRUST","RCD02","Hillingdon Hospital - RAS01"]
[null,null,null,null,null,null,null,null,null,null,null,null,null,null,null,null,null,null,null,null,"QJK","RBZ","NORTHERN DEVON HEALTHCARE NHS TRUST","RBZ12","North Devon District Hospital - RBZ12",null,"RJL","MID CHESHIRE HOSPITALS NHS FOUNDATION TRUST",null,"RJL","MID CHESHIRE HOSPITALS NHS FOUNDATION TRUST","RCF22","Hinchingbrooke Hospital - RGN90"]
[null,null,null,null,null,null,null,null,null,null,null,null,null,null,null,null,null,null,null,null,"QJK","RH8","ROYAL DEVON AND EXETER NHS FOUNDATION TRUST","RH801","Royal Devon and Exeter Hospital (Wonford) - RH801",null,"RJN","MID YORKSHIRE HOSPITALS NHS TRUST",null,"RJN","MID YORKSHIRE HOSPITALS NHS TRUST","RCUEF","Horton General Hospital - RTH05"]
[null,null,null,null,null,null,null,null,null,null,null,null,null,null,null,null,null,null,null,null,"QJK","RK9","UNIVERSITY HOSPITALS PLYMOUTH NHS TRUST","RK950","Derriford Hospital - RK950",null,"RJR","MILTON KEYNES UNIVERSITY HOSPITAL NHS FOUNDATION TRUST",null,"RJR","MILTON KEYNES UNIVERSITY HOSPITAL NHS FOUNDATION TRUST","RCX70","Hospital Of St Cross - RKB03"]
[null,null,null,null,null,null,null,null,null,null,null,null,null,null,null,null,null,null,null,null,"QJK","RK9","UNIVERSITY HOSPITALS PLYMOUTH NHS TRUST","RK9XXX","WiC_MIU - RK9XXX",null,"RJZ","MOORFIELDS EYE HOSPITAL NHS FOUNDATION TRUST",null,"RJZ","MOORFIELDS EYE HOSPITAL NHS FOUNDATION TRUST","RD816","Huddersfield Royal Infirmary - RWY01"]
[null,null,null,null,null,null,null,null,null,null,null,null,null,null,null,null,null,null,null,null,"QJM","RWD","UNITED LINCOLNSHIRE HOSPITALS NHS TRUST","RWDLP","Grantham and District Hospital - RWDLP",null,"RK5","NORFOLK AND NORWICH UNIVERSITY HOSPITALS NHS FOUNDATION TRUST",null,"RK5","NORFOLK AND NORWICH UNIVERSITY HOSPITALS NHS FOUNDATION TRUST","RDE03","Hull Royal Infirmary - RWA01"]
[null,null,null,null,null,null,null,null,null,null,null,null,null,null,null,null,null,null,null,null,"QJM","RWD","UNITED LINCOLNSHIRE HOSPITALS NHS TRUST","RWDDA","Lincoln County Hospital - RWDDA",null,"RK9","NORTH BRISTOL NHS TRUST",null,"RK9","NORTH BRISTOL NHS TRUST","RDEE4","Ipswich Hospital - RDE03"]
[null,null,null,null,null,null,null,null,null,null,null,null,null,null,null,null,null,null,null,null,"QJM","RWD","UNITED LINCOLNSHIRE HOSPITALS NHS TRUST","RWDLA","Pilgrim Hospital - RWDLA",null,"RKB","NORTH CUMBRIA INTEGRATED CARE NHS FOUNDATION TRUST",null,"RKB","NORTH CUMBRIA INTEGRATED CARE NHS FOUNDATION TRUST","RDU01","James Paget University Hospital - RGP75"]
[null,null,null,null,null,null,null,null,null,null,null,null,null,null,null,null,null,null,null,null,"QK1","RWE","UNIVERSITY HOSPITALS OF LEICESTER NHS TRUST","RWEAA","Leicester Royal Infirmary - RWEAA",null,"RKE","NORTH TEES AND HARTLEPOOL NHS FOUNDATION TRUST",null,"RKE","NORTH TEES AND HARTLEPOOL NHS FOUNDATION TRUST","RDU50","John Radcliffe Hospital - RTH08"]
[null,null,null,null,null,null,null,null,null,null,null,null,null,null,null,null,null,null,null,null,"QKK","RJ1","GUY'S AND ST THOMAS' NHS FOUNDATION TRUST","RJ122","St Thomas' Hospital - RJ122",null,"RLQ","NORTH WEST ANGLIA NHS FOUNDATION TRUST",null,"RLQ","NORTH WEST ANGLIA NHS FOUNDATION TRUST","REF01","Kent and Canterbury Hospital - RVVKC"]
[null,null,null,null,null,null,null,null,null,null,null,null,null,null,null,null,null,null,null,null,"QKK","RJ1","GUY'S AND ST THOMAS' NHS FOUNDATION TRUST","RJ1XXX","WiC_MIU - RJ1XXX",null,"RLT","NORTHAMPTON GENERAL HOSPITAL NHS TRUST",null,"RLT","NORTHAMPTON GENERAL HOSPITAL NHS TRUST","REF12","Kettering General Hospital - RNQ51"]
[null,null,null,null,null,null,null,null,null,null,null,null,null,null,null,null,null,null,null,null,"QKK","RJZ","KING'S COLLEGE HOSPITAL NHS FOUNDATION TRUST","RJZ01","King's College Hospital (Denmark Hill) - RJZ01",null,"RM1","NORTHERN DEVON HEALTHCARE NHS TRUST",null,"RM1","NORTHERN DEVON HEALTHCARE NHS TRUST","REM21","Kidderminster Hospital - RWP31"]
[null,null,null,null,null,null,null,null,null,null,null,null,null,null,null,null,null,null,null,null,"QKK","RJZ","KING'S COLLEGE HOSPITAL NHS FOUNDATION TRUST","RJZ30","Princess Royal University Hospital - RJZ30",null,"RM3","NORTHERN LINCOLNSHIRE AND GOOLE NHS FOUNDATION TRUST",null,"RM3","NORTHERN LINCOLNSHIRE AND GOOLE NHS FOUNDATION TRUST","REMRQ","King Edward Vii Hospital - RHW03"]
[null,null,null,null,null,null,null,null,null,null,null,null,null,null,null,null,null,null,null,null,"QKK","RJ2","LEWISHAM AND GREENWICH NHS TRUST","RJ231","Queen Elizabeth Hospital - RJ231",null,"RMC","NORTHUMBRIA HEALTHCARE NHS FOUNDATION TRUST",null,"RMC","NORTHUMBRIA HEALTHCARE NHS FOUNDATION TRUST","REP01","King George Hospital - RF4DG"]
[null,null,null,null,null,null,null,null,null,null,null,null,null,null,null,null,null,null,null,null,"QKK","RJ2","LEWISHAM AND GREENWICH NHS TRUST","RJ224","University Hospital Lewisham - RJ224",null,"RMP","NOTTINGHAM UNIVERSITY HOSPITALS NHS TRUST",null,"RMP","NOTTINGHAM UNIVERSITY HOSPITALS NHS TRUST","RF4DG","King's College Hospital (Denmark Hill) - RJZ01"]
[null,null,null,null,null,null,null,null,null,null,null,null,null,null,null,null,null,null,null,null,"QKS","RN7","DARTFORD AND GRAVESHAM NHS TRUST","RN707","Darent Valley Hospital - RN707",null,"RN3","OXFORD UNIVERSITY HOSPITALS NHS FOUNDATION TRUST",null,"RN3","OXFORD UNIVERSITY HOSPITALS NHS FOUNDATION TRUST","RF4QH","King's Mill Hospital - RK5BC"]
[null,null,null,null,null,null,null,null,null,null,null,null,null,null,null,null,null,null,null,null,"QKS","RVV","EAST KENT HOSPITALS UNIVERSITY NHS FOUNDATION TRUST","RVV02","Buckland Hospital - RVV02",null,"RN5","PENNINE ACUTE HOSPITALS NHS TRUST",null,"RN5","PENNINE ACUTE HOSPITALS NHS TRUST","RFFAA","Kingston Hospital - RAX01"]
[null,null,null,null,null,null,null,null,null,null,null,null,null,null,null,null,null,null,null,null,"QKS","RVV","EAST KENT HOSPITALS UNIVERSITY NHS FOUNDATION TRUST","RVVKC","Kent and Canterbury Hospital - RVVKC",null,"RN7","PORTSMOUTH HOSPITALS UNIVERSITY NATIONAL HEALTH SERVICE TRUST",null,"RN7","PORTSMOUTH HOSPITALS UNIVERSITY NATIONAL HEALTH SERVICE TRUST","RFRPA","Leeds General Infirmary - RR801"]
[null,null,null,null,null,null,null,null,null,null,null,null,null,null,null,null,null,null,null,null,"QKS","RVV","EAST KENT HOSPITALS UNIVERSITY NHS FOUNDATION TRUST","RVV09","Queen Elizabeth The Queen Mother Hospital - RVV09",null,"RNA","QUEEN VICTORIA HOSPITAL NHS FOUNDATION TRUST",null,"RNA","QUEEN VICTORIA HOSPITAL NHS FOUNDATION TRUST","RFSDA","Leicester Royal Infirmary - RWEAA"]
[null,null,null,null,null,null,null,null,null,null,null,null,null,null,null,null,null,null,null,null,"QKS","RVV","EAST KENT HOSPITALS UNIVERSITY NHS FOUNDATION TRUST","RVV01","William Harvey Hospital (Ashford) - RVV01",null,"RNN","ROYAL BERKSHIRE NHS FOUNDATION TRUST",null,"RNN","ROYAL BERKSHIRE NHS FOUNDATION TRUST","RGN80","Leighton Hospital - RBT20"]
[null,null,null,null,null,null,null,null,null,null,null,null,null,null,null,null,null,null,null,null,"QKS","RWF","MAIDSTONE AND TUNBRIDGE WELLS NHS TRUST","RWF03","Maidstone District General Hospital - RWF03",null,"RNQ","ROYAL CORNWALL HOSPITALS NHS TRUST",null,"RNQ","ROYAL CORNWALL HOSPITALS NHS TRUST","RGN90","Lincoln County Hospital - RWDDA"]
[null,null,null,null,null,null,null,null,null,null,null,null,null,null,null,null,null,null,null,null,"QKS","RWF","MAIDSTONE AND TUNBRIDGE WELLS NHS TRUST","RWFTW","The Tunbridge Wells Hospital - RWFTW",null,"RNS","ROYAL DEVON AND EXETER NHS FOUNDATION TRUST",null,"RNS","ROYAL DEVON AND EXETER NHS FOUNDATION TRUST","RGP75","Lister Hospital - RWH01"]
[null,null,null,null,null,null,null,null,null,null,null,null,null,null,null,null,null,null,null,null,"QKS","RWF","MAIDSTONE AND TUNBRIDGE WELLS NHS TRUST","RWFXXX","WiC_MIU - RWFXXX",null,"RNZ","ROYAL FREE LONDON NHS FOUNDATION TRUST",null,"RNZ","ROYAL FREE LONDON NHS FOUNDATION TRUST","RGR50","Liverpool Womens Hospital - REP01"]
[null,null,null,null,null,null,null,null,null,null,null,null,null,null,null,null,null,null,null,null,"QKS","RPA","MEDWAY NHS FOUNDATION TRUST","RPA02","Medway Maritime Hospital - RPA02",null,"RP5","ROYAL SURREY COUNTY HOSPITAL NHS FOUNDATION TRUST",null,"RP5","ROYAL SURREY COUNTY HOSPITAL NHS FOUNDATION TRUST","RGT01","Luton and Dunstable Hospital - RC971"]
[null,null,null,null,null,null,null,null,null,null,null,null,null,null,null,null,null,null,null,null,"QM7","RWH","EAST AND NORTH HERTFORDSHIRE NHS TRUST","RWH01","Lister Hospital - RWH01",null,"RP6","SALFORD ROYAL NHS FOUNDATION TRUST",null,"RP6","SALFORD ROYAL NHS FOUNDATION TRUST","RH5A8","Macclesfield District General Hospital - RJN71"]
[null,null,null,null,null,null,null,null,null,null,null,null,null,null,null,null,null,null,null,null,"QM7","RWH","EAST AND NORTH HERTFORDSHIRE NHS TRUST","RWH20","Queen Elizabeth I I Hospital - RWH20",null,"RPA","SALISBURY NHS FOUNDATION TRUST",null,"RPA","SALISBURY NHS FOUNDATION TRUST","RH5XXX","Maidstone District General Hospital - RWF03"]
[null,null,null,null,null,null,null,null,null,null,null,null,null,null,null,null,null,null,null,null,"QM7","RQW","THE PRINCESS ALEXANDRA HOSPITAL NHS TRUST","RQWG0","Princess Alexandra Hospital - RQWG0",null,"RPC","SHEFFIELD CHILDREN'S NHS FOUNDATION TRUST",null,"RPC","SHEFFIELD CHILDREN'S NHS FOUNDATION TRUST","RH801","Manchester Royal Eye Hospital - R0A04"]
[null,null,null,null,null,null,null,null,null,null,null,null,null,null,null,null,null,null,null,null,"QM7","RWG","WEST HERTFORDSHIRE HOSPITALS NHS TRUST","RWG02","Watford General Hospital - RWG02",null,"RQ3","SHEFFIELD TEACHING HOSPITALS NHS FOUNDATION TRUST",null,"RQ3","SHEFFIELD TEACHING HOSPITALS NHS FOUNDATION TRUST","RHM01","Manchester Royal Infirmary - R0A02"]
[null,null,null,null,null,null,null,null,null,null,null,null,null,null,null,null,null,null,null,null,"QMF","RF4","BARKING, HAVERING AND REDBRIDGE UNIVERSITY HOSPITALS NHS TRUST","RF4DG","King George Hospital - RF4DG",null,"RQM","SHERWOOD FOREST HOSPITALS NHS FOUNDATION TRUST",null,"RQM","SHERWOOD FOREST HOSPITALS NHS FOUNDATION TRUST","RHQHH","Manor Hospital - RBK02"]
[null,null,null,null,null,null,null,null,null,null,null,null,null,null,null,null,null,null,null,null,"QMF","RF4","BARKING, HAVERING AND REDBRIDGE UNIVERSITY HOSPITALS NHS TRUST","RF4QH","Queen's Hospital - RF4QH",null,"RQW","SOMERSET NHS FOUNDATION TRUST",null,"RQW","SOMERSET NHS FOUNDATION TRUST","RHQNG","Medway Maritime Hospital - RPA02"]
[null,null,null,null,null,null,null,null,null,null,null,null,null,null,null,null,null,null,null,null,"QMF","R1H","BARTS HEALTH NHS TRUST","R1HNH","Newham General Hospital - R1HNH",null,"RR7","SOUTH TEES HOSPITALS NHS FOUNDATION TRUST",null,"RR7","SOUTH TEES HOSPITALS NHS FOUNDATION TRUST","RHU03","Mid Essex Hospital - RAJ32"]
[null,null,null,null,null,null,null,null,null,null,null,null,null,null,null,null,null,null,null,null,"QMF","R1H","BARTS HEALTH NHS TRUST","R1HM0","St Bartholomew's Hospital - R1HM0",null,"RR8","SOUTH TYNESIDE AND SUNDERLAND NHS FOUNDATION TRUST",null,"RR8","SOUTH TYNESIDE AND SUNDERLAND NHS FOUNDATION TRUST","RHUXXX","Milton Keynes Hospital - RD816"]
[null,null,null,null,null,null,null,null,null,null,null,null,null,null,null,null,null,null,null,null,"QMF","R1H","BARTS HEALTH NHS TRUST","R1H12","The Royal London Hospital - R1H12",null,"RRF","SOUTH WARWICKSHIRE NHS FOUNDATION TRUST",null,"RRF","SOUTH WARWICKSHIRE NHS FOUNDATION TRUST","RHW01","Montagu Hospital - RP5MM"]
[null,null,null,null,null,null,null,null,null,null,null,null,null,null,null,null,null,null,null,null,"QMF","R1H","BARTS HEALTH NHS TRUST","R1HKH","Whipps Cross University Hospital - R1HKH",null,"RRK","SOUTHPORT AND ORMSKIRK HOSPITAL NHS TRUST",null,"RRK","SOUTHPORT AND ORMSKIRK HOSPITAL NHS TRUST","RHW03","Moorfields Eye Hospital (City Road) - RP601"]
[null,null,null,null,null,null,null,null,null,null,null,null,null,null,null,null,null,null,null,null,"QMF","R1H","BARTS HEALTH NHS TRUST","R1HXXX","WiC_MIU - R1HXXX",null,"RRV","ST HELENS AND KNOWSLEY TEACHING HOSPITALS NHS TRUST",null,"RRV","ST HELENS AND KNOWSLEY TEACHING HOSPITALS NHS TRUST","RJ122","Mount Vernon Hospital Site - RAS02"]
[null,null,null,null,null,null,null,null,null,null,null,null,null,null,null,null,null,null,null,null,"QMJ","RP6","MOORFIELDS EYE HOSPITAL NHS FOUNDATION TRUST","RP601","Moorfields Eye Hospital (City Road) - RP601",null,"RTD","STOCKPORT NHS FOUNDATION TRUST",null,"RTD","STOCKPORT NHS FOUNDATION TRUST","RJ1XXX","Musgrove Park Hospital - RH5A8"]
[null,null,null,null,null,null,null,null,null,null,null,null,null,null,null,null,null,null,null,null,"QMJ","RAL","ROYAL FREE LONDON NHS FOUNDATION TRUST","RALXXX","WiC_MIU - RALXXX",null,"RTE","SURREY AND SUSSEX HEALTHCARE NHS TRUST",null,"RTE","SURREY AND SUSSEX HEALTHCARE NHS TRUST","RJ224","Newham General Hospital - R1HNH"]
[null,null,null,null,null,null,null,null,null,null,null,null,null,null,null,null,null,null,null,null,"QMJ","RRV","UNIVERSITY COLLEGE LONDON HOSPITALS NHS FOUNDATION TRUST","RRV03","University College Hospital - RRV03",null,"RTF","TAMESIDE AND GLOSSOP INTEGRATED CARE NHS FOUNDATION TRUST",null,"RTF","TAMESIDE AND GLOSSOP INTEGRATED CARE NHS FOUNDATION TRUST","RJ231","Norfolk and Norwich University Hospital - RM102"]
[null,null,null,null,null,null,null,null,null,null,null,null,null,null,null,null,null,null,null,null,"QMJ","RKE","WHITTINGTON HEALTH NHS TRUST","RKEQ4","The Whittington Hospital - RKEQ4",null,"RTG","THE DUDLEY GROUP NHS FOUNDATION TRUST",null,"RTG","THE DUDLEY GROUP NHS FOUNDATION TRUST","RJ611","North Devon District Hospital - RBZ12"]
[null,null,null,null,null,null,null,null,null,null,null,null,null,null,null,null,null,null,null,null,"QMM","RGP","JAMES PAGET UNIVERSITY HOSPITALS NHS FOUNDATION TRUST","RGP75","James Paget University Hospital - RGP75",null,"RTH","THE HILLINGDON HOSPITALS NHS FOUNDATION TRUST",null,"RTH","THE HILLINGDON HOSPITALS NHS FOUNDATION TRUST","RJC02","North Manchester General Hospital - RW602"]
[null,null,null,null,null,null,null,null,null,null,null,null,null,null,null,null,null,null,null,null,"QMM","RM1","NORFOLK AND NORWICH UNIVERSITY HOSPITALS NHS FOUNDATION TRUST","RM102","Norfolk and Norwich University Hospital - RM102",null,"RTP","THE NEWCASTLE UPON TYNE HOSPITALS NHS FOUNDATION TRUST",null,"RTP","THE NEWCASTLE UPON TYNE HOSPITALS NHS FOUNDATION TRUST","RJCXXX","Northampton General Hospital (Acute) - RNS01"]
[null,null,null,null,null,null,null,null,null,null,null,null,null,null,null,null,null,null,null,null,"QMM","RCX","THE QUEEN ELIZABETH HOSPITAL, KING'S LYNN, NHS FOUNDATION TRUST","RCX70","The Queen Elizabeth Hospital - RCX70",null,"RTR","THE PRINCESS ALEXANDRA HOSPITAL NHS TRUST",null,"RTR","THE PRINCESS ALEXANDRA HOSPITAL NHS TRUST","RJE01","Northern General Hospital - RHQNG"]
[null,null,null,null,null,null,null,null,null,null,null,null,null,null,null,null,null,null,null,null,"QNC","RJE","UNIVERSITY HOSPITALS OF NORTH MIDLANDS NHS TRUST","RJE09","County Hospital - RJE09",null,"RTX","THE QUEEN ELIZABETH HOSPITAL, KING'S LYNN, NHS FOUNDATION TRUST",null,"RTX","THE QUEEN ELIZABETH HOSPITAL, KING'S LYNN, NHS FOUNDATION TRUST","RJE09","Northwick Park Hospital - R1K01"]
[null,null,null,null,null,null,null,null,null,null,null,null,null,null,null,null,null,null,null,null,"QNC","RJE","UNIVERSITY HOSPITALS OF NORTH MIDLANDS NHS TRUST","RJE01","Royal Stoke University Hospital - RJE01",null,"RVJ","THE ROTHERHAM NHS FOUNDATION TRUST",null,"RVJ","THE ROTHERHAM NHS FOUNDATION TRUST","RJEXXX","Nottingham University Hospitals NHS Trust - Queen's Medical Centre Campus - RX1RA"]
[null,null,null,null,null,null,null,null,null,null,null,null,null,null,null,null,null,null,null,null,"QNC","RJE","UNIVERSITY HOSPITALS OF NORTH MIDLANDS NHS TRUST","RJEXXX","WiC_MIU - RJEXXX",null,"RVR","THE SHREWSBURY AND TELFORD HOSPITAL NHS TRUST",null,"RVR","THE SHREWSBURY AND TELFORD HOSPITAL NHS TRUST","RJL30","Ormskirk and District General Hospital - RVY02"]
[null,null,null,null,null,null,null,null,null,null,null,null,null,null,null,null,null,null,null,null,"QNQ","RDU","FRIMLEY HEALTH NHS FOUNDATION TRUST","RDU01","Frimley Park Hospital - RDU01",null,"RVV","UNITED LINCOLNSHIRE HOSPITALS NHS TRUST",null,"RVV","UNITED LINCOLNSHIRE HOSPITALS NHS TRUST","RJL32","Peterborough City Hospital - RGN80"]
[null,null,null,null,null,null,null,null,null,null,null,null,null,null,null,null,null,null,null,null,"QNQ","RDU","FRIMLEY HEALTH NHS FOUNDATION TRUST","RDU50","Wexham Park Hospital - RDU50",null,"RVW","UNIVERSITY COLLEGE LONDON HOSPITALS NHS FOUNDATION TRUST",null,"RVW","UNIVERSITY COLLEGE LONDON HOSPITALS NHS FOUNDATION TRUST","RJN71","Pilgrim Hospital - RWDLA"]
[null,null,null,null,null,null,null,null,null,null,null,null,null,null,null,null,null,null,null,null,"QNX","RXC","EAST SUSSEX HEALTHCARE NHS TRUST","RXC01","Conquest Hospital - RXC01",null,"RVY","UNIVERSITY HOSPITAL SOUTHAMPTON NHS FOUNDATION TRUST",null,"RVY","UNIVERSITY HOSPITAL SOUTHAMPTON NHS FOUNDATION TRUST","RJR05","Pinderfields General Hospital - RXF05"]
[null,null,null,null,null,null,null,null,null,null,null,null,null,null,null,null,null,null,null,null,"QNX","RXC","EAST SUSSEX HEALTHCARE NHS TRUST","RXC02","Eastbourne District General Hospital - RXC02",null,"RW6","UNIVERSITY HOSPITALS BIRMINGHAM NHS FOUNDATION TRUST",null,"RW6","UNIVERSITY HOSPITALS BIRMINGHAM NHS FOUNDATION TRUST","RJZ01","Pontefract General Infirmary - RXF03"]
[null,null,null,null,null,null,null,null,null,null,null,null,null,null,null,null,null,null,null,null,"QNX","RPC","QUEEN VICTORIA HOSPITAL NHS FOUNDATION TRUST","RPC","QUEEN VICTORIA HOSPITAL NHS FOUNDATION TRUST",null,"RWA","UNIVERSITY HOSPITALS BRISTOL AND WESTON NHS FOUNDATION TRUST",null,"RWA","UNIVERSITY HOSPITALS BRISTOL AND WESTON NHS FOUNDATION TRUST","RJZ30","Poole Hospital - R0D01"]
[null,null,null,null,null,null,null,null,null,null,null,null,null,null,null,null,null,null,null,null,"QNX","RYR","WESTERN SUSSEX HOSPITALS NHS FOUNDATION TRUST","RYR16","St Richard's Hospital - RYR16",null,"RWD","UNIVERSITY HOSPITALS COVENTRY AND WARWICKSHIRE NHS TRUST",null,"RWD","UNIVERSITY HOSPITALS COVENTRY AND WARWICKSHIRE NHS TRUST","RK5BC","Princess Alexandra Hospital - RQWG0"]
[null,null,null,null,null,null,null,null,null,null,null,null,null,null,null,null,null,null,null,null,"QNX","RYR","WESTERN SUSSEX HOSPITALS NHS FOUNDATION TRUST","RYR18","Worthing Hospital - RYR18",null,"RWE","UNIVERSITY HOSPITALS DORSET NHS FOUNDATION TRUST",null,"RWE","UNIVERSITY HOSPITALS DORSET NHS FOUNDATION TRUST","RK5XXX","Princess Royal University Hospital - RJZ30"]
[null,null,null,null,null,null,null,null,null,null,null,null,null,null,null,null,null,null,null,null,"QOC","RXW","THE SHREWSBURY AND TELFORD HOSPITAL NHS TRUST","RXWAS","Royal Shrewsbury Hospital - RXWAS",null,"RWF","UNIVERSITY HOSPITALS OF DERBY AND BURTON NHS FOUNDATION TRUST",null,"RWF","UNIVERSITY HOSPITALS OF DERBY AND BURTON NHS FOUNDATION TRUST","RK950","Queen Alexandra Hospital - RHU03"]
[null,null,null,null,null,null,null,null,null,null,null,null,null,null,null,null,null,null,null,null,"QOC","RXW","THE SHREWSBURY AND TELFORD HOSPITAL NHS TRUST","RXWAT","The Princess Royal Hospital - RXWAT",null,"RWG","UNIVERSITY HOSPITALS OF LEICESTER NHS TRUST",null,"RWG","UNIVERSITY HOSPITALS OF LEICESTER NHS TRUST","RK9XXX","Queen Elizabeth Hospital - RJ231"]
[null,null,null,null,null,null,null,null,null,null,null,null,null,null,null,null,null,null,null,null,"QOP","RMC","BOLTON NHS FOUNDATION TRUST","RMC01","Royal Bolton Hospital - RMC01",null,"RWH","UNIVERSITY HOSPITALS OF MORECAMBE BAY NHS FOUNDATION TRUST",null,"RWH","UNIVERSITY HOSPITALS OF MORECAMBE BAY NHS FOUNDATION TRUST","RKB01","Queen Elizabeth Hospital - RR7EN"]
[null,null,null,null,null,null,null,null,null,null,null,null,null,null,null,null,null,null,null,null,"QOP","R0A","MANCHESTER UNIVERSITY NHS FOUNDATION TRUST","R0A04","Manchester Royal Eye Hospital - R0A04",null,"RWJ","UNIVERSITY HOSPITALS OF NORTH MIDLANDS NHS TRUST",null,"RWJ","UNIVERSITY HOSPITALS OF NORTH MIDLANDS NHS TRUST","RKB03","Queen Elizabeth Hospital Birmingham - RRK15"]
[null,null,null,null,null,null,null,null,null,null,null,null,null,null,null,null,null,null,null,null,"QOP","R0A","MANCHESTER UNIVERSITY NHS FOUNDATION TRUST","R0A02","Manchester Royal Infirmary - R0A02",null,"RWP","UNIVERSITY HOSPITALS PLYMOUTH NHS TRUST",null,"RWP","UNIVERSITY HOSPITALS PLYMOUTH NHS TRUST","RKBXXX","Queen Elizabeth I I Hospital - RWH20"]
[null,null,null,null,null,null,null,null,null,null,null,null,null,null,null,null,null,null,null,null,"QOP","R0A","MANCHESTER UNIVERSITY NHS FOUNDATION TRUST","R0A03","Royal Manchester Children's Hospital - R0A03",null,"RWW","WALSALL HEALTHCARE NHS TRUST",null,"RWW","WALSALL HEALTHCARE NHS TRUST","RKEQ4","Queen Elizabeth The Queen Mother Hospital - RVV09"]
[null,null,null,null,null,null,null,null,null,null,null,null,null,null,null,null,null,null,null,null,"QOP","R0A","MANCHESTER UNIVERSITY NHS FOUNDATION TRUST","R0A05","St Mary's Hospital - R0A05",null,"RWY","WARRINGTON AND HALTON TEACHING HOSPITALS NHS FOUNDATION TRUST",null,"RWY","WARRINGTON AND HALTON TEACHING HOSPITALS NHS FOUNDATION TRUST","RLQ01","QUEEN VICTORIA HOSPITAL NHS FOUNDATION TRUST"]
[null,null,null,null,null,null,null,null,null,null,null,null,null,null,null,null,null,null,null,null,"QOP","R0A","MANCHESTER UNIVERSITY NHS FOUNDATION TRUST","R0A09","Trafford General Hospital - R0A09",null,"RX1","WEST HERTFORDSHIRE HOSPITALS NHS TRUST",null,"RX1","WEST HERTFORDSHIRE HOSPITALS NHS TRUST","RLT01","Queen's Hospital - RF4QH"]
[null,null,null,null,null,null,null,null,null,null,null,null,null,null,null,null,null,null,null,null,"QOP","R0A","MANCHESTER UNIVERSITY NHS FOUNDATION TRUST","R0A06","University Dental Hospital - R0A06",null,"RXC","WEST SUFFOLK NHS FOUNDATION TRUST",null,"RXC","WEST SUFFOLK NHS FOUNDATION TRUST","RM102","Queen's Hospital, Burton Upon Trent - RTG02"]
[null,null,null,null,null,null,null,null,null,null,null,null,null,null,null,null,null,null,null,null,"QOP","R0A","MANCHESTER UNIVERSITY NHS FOUNDATION TRUST","R0A07","Wythenshawe Hospital - R0A07",null,"RXF","WESTERN SUSSEX HOSPITALS NHS FOUNDATION TRUST",null,"RXF","WESTERN SUSSEX HOSPITALS NHS FOUNDATION TRUST","RM301","Ripon and District Community Hospital - RCD02"]
[null,null,null,null,null,null,null,null,null,null,null,null,null,null,null,null,null,null,null,null,"QOP","RW6","PENNINE ACUTE HOSPITALS NHS TRUST","RW601","Fairfield General Hospital - RW601",null,"RXN","WHITTINGTON HEALTH NHS TRUST",null,"RXN","WHITTINGTON HEALTH NHS TRUST","RMC01","Rochdale Infirmary - RW604"]
[null,null,null,null,null,null,null,null,null,null,null,null,null,null,null,null,null,null,null,null,"QOP","RW6","PENNINE ACUTE HOSPITALS NHS TRUST","RW602","North Manchester General Hospital - RW602",null,"RXP","WIRRAL UNIVERSITY TEACHING HOSPITAL NHS FOUNDATION TRUST",null,"RXP","WIRRAL UNIVERSITY TEACHING HOSPITAL NHS FOUNDATION TRUST","RMP01","Rotherham District General Hospital - RFRPA"]
[null,null,null,null,null,null,null,null,null,null,null,null,null,null,null,null,null,null,null,null,"QOP","RW6","PENNINE ACUTE HOSPITALS NHS TRUST","RW604","Rochdale Infirmary - RW604",null,"RXQ","WORCESTERSHIRE ACUTE HOSPITALS NHS TRUST",null,"RXQ","WORCESTERSHIRE ACUTE HOSPITALS NHS TRUST","RN325","Royal Albert Edward Infirmary - RRF02"]
[null,null,null,null,null,null,null,null,null,null,null,null,null,null,null,null,null,null,null,null,"QOP","RW6","PENNINE ACUTE HOSPITALS NHS TRUST","RW603","Royal Oldham Hospital - RW603",null,"RXR","WRIGHTINGTON, WIGAN AND LEIGH NHS FOUNDATION TRUST",null,"RXR","WRIGHTINGTON, WIGAN AND LEIGH NHS FOUNDATION TRUST","RN3TC","Royal Berkshire Hospital - RHW01"]
[null,null,null,null,null,null,null,null,null,null,null,null,null,null,null,null,null,null,null,null,"QOP","RM3","SALFORD ROYAL NHS FOUNDATION TRUST","RM301","Salford Royal - RM301",null,"RXW","WYE VALLEY NHS TRUST",null,"RXW","WYE VALLEY NHS TRUST","RN506","Royal Blackburn Hospital - RXR20"]
[null,null,null,null,null,null,null,null,null,null,null,null,null,null,null,null,null,null,null,null,"QOP","RWJ","STOCKPORT NHS FOUNDATION TRUST","RWJ09","Stepping Hill Hospital - RWJ09",null,"RYJ","YEOVIL DISTRICT HOSPITAL NHS FOUNDATION TRUST",null,"RYJ","YEOVIL DISTRICT HOSPITAL NHS FOUNDATION TRUST","RN541","Royal Bolton Hospital - RMC01"]
[null,null,null,null,null,null,null,null,null,null,null,null,null,null,null,null,null,null,null,null,"QOP","RMP","TAMESIDE AND GLOSSOP INTEGRATED CARE NHS FOUNDATION TRUST","RMP01","Tameside General Hospital - RMP01",null,"RYR","YORK TEACHING HOSPITAL NHS FOUNDATION TRUST",null,"RYR","YORK TEACHING HOSPITAL NHS FOUNDATION TRUST","RN542","Royal Bourenmouth Hospital - R0D02"]
[null,null,null,null,null,null,null,null,null,null,null,null,null,null,null,null,null,null,null,null,"QOP","RRF","WRIGHTINGTON, WIGAN AND LEIGH NHS FOUNDATION TRUST","RRF02","Royal Albert Edward Infirmary - RRF02",null,null,null,null,null,null,"RN707","Royal Cornwall Hospital (Treliske) - REF12"]
[null,null,null,null,null,null,null,null,null,null,null,null,null,null,null,null,null,null,null,null,"QOQ","RCD","HARROGATE AND DISTRICT NHS FOUNDATION TRUST","RCD01","Harrogate District Hospital - RCD01",null,null,null,null,null,null,"RNA01","Royal Derby Hospital - RTGFG"]
[null,null,null,null,null,null,null,null,null,null,null,null,null,null,null,null,null,null,null,null,"QOQ","RCD","HARROGATE AND DISTRICT NHS FOUNDATION TRUST","RCD02","Ripon and District Community Hospital - RCD02",null,null,null,null,null,null,"RNN62","Royal Devon and Exeter Hospital (Wonford) - RH801"]
[null,null,null,null,null,null,null,null,null,null,null,null,null,null,null,null,null,null,null,null,"QOQ","RWA","HULL UNIVERSITY TEACHING HOSPITALS NHS TRUST","RWA01","Hull Royal Infirmary - RWA01",null,null,null,null,null,null,"RNNBX","Royal Hallamshire Hospital - RHQHH"]
[null,null,null,null,null,null,null,null,null,null,null,null,null,null,null,null,null,null,null,null,"QOQ","RJL","NORTHERN LINCOLNSHIRE AND GOOLE NHS FOUNDATION TRUST","RJL30","Diana, Princess Of Wales Hospital - RJL30",null,null,null,null,null,null,"RNQ51","Royal Hampshire County Hospital - RN541"]
[null,null,null,null,null,null,null,null,null,null,null,null,null,null,null,null,null,null,null,null,"QOQ","RJL","NORTHERN LINCOLNSHIRE AND GOOLE NHS FOUNDATION TRUST","RJL32","Scunthorpe General Hospital - RJL32",null,null,null,null,null,null,"RNS01","Royal Lancaster Infirmary - RTX02"]
[null,null,null,null,null,null,null,null,null,null,null,null,null,null,null,null,null,null,null,null,"QOQ","RCB","YORK TEACHING HOSPITAL NHS FOUNDATION TRUST","RCBCA","Scarborough General Hospital - RCBCA",null,null,null,null,null,null,"RNZ02","Royal Liverpool University Hospital - REMRQ"]
[null,null,null,null,null,null,null,null,null,null,null,null,null,null,null,null,null,null,null,null,"QOQ","RCB","YORK TEACHING HOSPITAL NHS FOUNDATION TRUST","RCB55","York Hospital - RCB55",null,null,null,null,null,null,"RP5BA","Royal Manchester Children's Hospital - R0A03"]
[null,null,null,null,null,null,null,null,null,null,null,null,null,null,null,null,null,null,null,null,"QOX","RN3","GREAT WESTERN HOSPITALS NHS FOUNDATION TRUST","RN3TC","The Brunel NHS Treatment Centre - RN3TC",null,null,null,null,null,null,"RP5DR","Royal Oldham Hospital - RW603"]
[null,null,null,null,null,null,null,null,null,null,null,null,null,null,null,null,null,null,null,null,"QOX","RN3","GREAT WESTERN HOSPITALS NHS FOUNDATION TRUST","RN325","The Great Western Hospital - RN325",null,null,null,null,null,null,"RP5MM","Royal Preston Hospital - RXN02"]
[null,null,null,null,null,null,null,null,null,null,null,null,null,null,null,null,null,null,null,null,"QOX","RNZ","SALISBURY NHS FOUNDATION TRUST","RNZ02","Salisbury District Hospital - RNZ02",null,null,null,null,null,null,"RP601","Royal Shrewsbury Hospital - RXWAS"]
[null,null,null,null,null,null,null,null,null,null,null,null,null,null,null,null,null,null,null,null,"QPM","RNQ","KETTERING GENERAL HOSPITAL NHS FOUNDATION TRUST","RNQ51","Kettering General Hospital - RNQ51",null,null,null,null,null,null,"RPA02","Royal Stoke University Hospital - RJE01"]
[null,null,null,null,null,null,null,null,null,null,null,null,null,null,null,null,null,null,null,null,"QPM","RNS","NORTHAMPTON GENERAL HOSPITAL NHS TRUST","RNS01","Northampton General Hospital (Acute) - RNS01",null,null,null,null,null,null,"RPC","Royal Surrey County Hospital - RA201"]
[null,null,null,null,null,null,null,null,null,null,null,null,null,null,null,null,null,null,null,null,"QR1","RTE","GLOUCESTERSHIRE HOSPITALS NHS FOUNDATION TRUST","RTE01","Cheltenham General Hospital - RTE01",null,null,null,null,null,null,"RQ301","Russells Hall Hospital - RNA01"]
[null,null,null,null,null,null,null,null,null,null,null,null,null,null,null,null,null,null,null,null,"QR1","RTE","GLOUCESTERSHIRE HOSPITALS NHS FOUNDATION TRUST","RTE03","Gloucestershire Royal Hospital - RTE03",null,null,null,null,null,null,"RQM01","Salford Royal - RM301"]
[null,null,null,null,null,null,null,null,null,null,null,null,null,null,null,null,null,null,null,null,"QRL","RN5","HAMPSHIRE HOSPITALS NHS FOUNDATION TRUST","RN542","Andover War Memorial Hospital - RN542",null,null,null,null,null,null,"RQM91","Salisbury District Hospital - RNZ02"]
[null,null,null,null,null,null,null,null,null,null,null,null,null,null,null,null,null,null,null,null,"QRL","RN5","HAMPSHIRE HOSPITALS NHS FOUNDATION TRUST","RN506","Basingstoke and North Hampshire Hospital - RN506",null,null,null,null,null,null,"RQMXXX","Samuel Johnson - RTG54"]
[null,null,null,null,null,null,null,null,null,null,null,null,null,null,null,null,null,null,null,null,"QRL","RN5","HAMPSHIRE HOSPITALS NHS FOUNDATION TRUST","RN541","Royal Hampshire County Hospital - RN541",null,null,null,null,null,null,"RQWG0","Scarborough General Hospital - RCBCA"]
[null,null,null,null,null,null,null,null,null,null,null,null,null,null,null,null,null,null,null,null,"QRL","R1F","ISLE OF WIGHT NHS TRUST","R1F01","St Mary's Hospital - R1F01",null,null,null,null,null,null,"RR7EN","Scunthorpe General Hospital - RJL32"]
[null,null,null,null,null,null,null,null,null,null,null,null,null,null,null,null,null,null,null,null,"QRL","RHU","PORTSMOUTH HOSPITALS UNIVERSITY NATIONAL HEALTH SERVICE TRUST","RHU03","Queen Alexandra Hospital - RHU03",null,null,null,null,null,null,"RR801","Sheffield Children's Hospital - RCUEF"]
[null,null,null,null,null,null,null,null,null,null,null,null,null,null,null,null,null,null,null,null,"QRL","RHU","PORTSMOUTH HOSPITALS UNIVERSITY NATIONAL HEALTH SERVICE TRUST","RHUXXX","WiC_MIU - RHUXXX",null,null,null,null,null,null,"RR813","Sir Robert Peel - RTG50"]
[null,null,null,null,null,null,null,null,null,null,null,null,null,null,null,null,null,null,null,null,"QRL","RHM","UNIVERSITY HOSPITAL SOUTHAMPTON NHS FOUNDATION TRUST","RHM01","Southampton General Hospital - RHM01",null,null,null,null,null,null,"RRF02","Solihull Hospital - RRK99"]
[null,null,null,null,null,null,null,null,null,null,null,null,null,null,null,null,null,null,null,null,"QRV","RQM","CHELSEA AND WESTMINSTER HOSPITAL NHS FOUNDATION TRUST","RQM01","Chelsea and Westminster Hospital - RQM01",null,null,null,null,null,null,"RRK15","South Tyneside District Hospital - R0B0Q"]
[null,null,null,null,null,null,null,null,null,null,null,null,null,null,null,null,null,null,null,null,"QRV","RQM","CHELSEA AND WESTMINSTER HOSPITAL NHS FOUNDATION TRUST","RQM91","West Middlesex University Hospital - RQM91",null,null,null,null,null,null,"RRK97","Southampton General Hospital - RHM01"]
[null,null,null,null,null,null,null,null,null,null,null,null,null,null,null,null,null,null,null,null,"QRV","RQM","CHELSEA AND WESTMINSTER HOSPITAL NHS FOUNDATION TRUST","RQMXXX","WiC_MIU - RQMXXX",null,null,null,null,null,null,"RRK98","Southend Hospital - RAJ01"]
[null,null,null,null,null,null,null,null,null,null,null,null,null,null,null,null,null,null,null,null,"QRV","RYJ","IMPERIAL COLLEGE HEALTHCARE NHS TRUST","RYJ02","Charing Cross Hospital - RYJ02",null,null,null,null,null,null,"RRK99","Southmead Hospital - RVJ01"]
[null,null,null,null,null,null,null,null,null,null,null,null,null,null,null,null,null,null,null,null,"QRV","RYJ","IMPERIAL COLLEGE HEALTHCARE NHS TRUST","RYJ01","St Mary's Hospital (HQ) - RYJ01",null,null,null,null,null,null,"RRV03","Southport and Formby District General Hospital - RVY01"]
[null,null,null,null,null,null,null,null,null,null,null,null,null,null,null,null,null,null,null,null,"QRV","RYJ","IMPERIAL COLLEGE HEALTHCARE NHS TRUST","RYJ07","Western Eye Hospital - RYJ07",null,null,null,null,null,null,"RTD02","St Bartholomew's Hospital - R1HM0"]
[null,null,null,null,null,null,null,null,null,null,null,null,null,null,null,null,null,null,null,null,"QRV","RYJ","IMPERIAL COLLEGE HEALTHCARE NHS TRUST","RYJXXX","WiC_MIU - RYJXXX",null,null,null,null,null,null,"RTE01","St Helier Hospital - RVR05"]
[null,null,null,null,null,null,null,null,null,null,null,null,null,null,null,null,null,null,null,null,"QRV","R1K","LONDON NORTH WEST UNIVERSITY HEALTHCARE NHS TRUST","R1K04","Ealing Hospital - R1K04",null,null,null,null,null,null,"RTE03","St James's University Hospital - RR813"]
[null,null,null,null,null,null,null,null,null,null,null,null,null,null,null,null,null,null,null,null,"QRV","R1K","LONDON NORTH WEST UNIVERSITY HEALTHCARE NHS TRUST","R1K01","Northwick Park Hospital - R1K01",null,null,null,null,null,null,"RTF86","St Mary's Hospital - R0A05"]
[null,null,null,null,null,null,null,null,null,null,null,null,null,null,null,null,null,null,null,null,"QRV","R1K","LONDON NORTH WEST UNIVERSITY HEALTHCARE NHS TRUST","R1KXXX","WiC_MIU - R1KXXX",null,null,null,null,null,null,"RTFXXX","St Mary's Hospital - R1F01"]
[null,null,null,null,null,null,null,null,null,null,null,null,null,null,null,null,null,null,null,null,"QRV","RAS","THE HILLINGDON HOSPITALS NHS FOUNDATION TRUST","RAS01","Hillingdon Hospital - RAS01",null,null,null,null,null,null,"RTG02","St Mary's Hospital (HQ) - RYJ01"]
[null,null,null,null,null,null,null,null,null,null,null,null,null,null,null,null,null,null,null,null,"QRV","RAS","THE HILLINGDON HOSPITALS NHS FOUNDATION TRUST","RAS02","Mount Vernon Hospital Site - RAS02",null,null,null,null,null,null,"RTG50","St Richard's Hospital - RYR16"]
[null,null,null,null,null,null,null,null,null,null,null,null,null,null,null,null,null,null,null,null,"QSL","RH5","SOMERSET NHS FOUNDATION TRUST","RH5A8","Musgrove Park Hospital - RH5A8",null,null,null,null,null,null,"RTG54","St Thomas' Hospital - RJ122"]
[null,null,null,null,null,null,null,null,null,null,null,null,null,null,null,null,null,null,null,null,"QSL","RH5","SOMERSET NHS FOUNDATION TRUST","RH5XXX","Wic MIU - RH5XXX",null,null,null,null,null,null,"RTGFG","Stepping Hill Hospital - RWJ09"]
[null,null,null,null,null,null,null,null,null,null,null,null,null,null,null,null,null,null,null,null,"QSL","RA4","YEOVIL DISTRICT HOSPITAL NHS FOUNDATION TRUST","RA430","Yeovil District Hospital - RA430",null,null,null,null,null,null,"RTH05","Stoke Mandeville Hospital - RXQ02"]
[null,null,null,null,null,null,null,null,null,null,null,null,null,null,null,null,null,null,null,null,"QT1","RX1","NOTTINGHAM UNIVERSITY HOSPITALS NHS TRUST","RX1RA","Nottingham University Hospitals NHS Trust - Queen's Medical Centre Campus - RX1RA",null,null,null,null,null,null,"RTH08","Sunderland Eye Infirmary – R0B0X"]
[null,null,null,null,null,null,null,null,null,null,null,null,null,null,null,null,null,null,null,null,"QT1","RK5","SHERWOOD FOREST HOSPITALS NHS FOUNDATION TRUST","RK5BC","King's Mill Hospital - RK5BC",null,null,null,null,null,null,"RTP04","Sunderland Royal Hospital – R0B01"]
[null,null,null,null,null,null,null,null,null,null,null,null,null,null,null,null,null,null,null,null,"QT1","RK5","SHERWOOD FOREST HOSPITALS NHS FOUNDATION TRUST","RK5XXX","WiC_MIU - RK5XXX",null,null,null,null,null,null,"RTR45","Tameside General Hospital - RMP01"]
[null,null,null,null,null,null,null,null,null,null,null,null,null,null,null,null,null,null,null,null,"QT6","REF","ROYAL CORNWALL HOSPITALS NHS TRUST","REF12","Royal Cornwall Hospital (Treliske) - REF12",null,null,null,null,null,null,"RTRAT","The Brunel NHS Treatment Centre - RN3TC"]
[null,null,null,null,null,null,null,null,null,null,null,null,null,null,null,null,null,null,null,null,"QT6","REF","ROYAL CORNWALL HOSPITALS NHS TRUST","REF01","West Cornwall Hospital (Penzance) - REF01",null,null,null,null,null,null,"RTRXXX","The Great Western Hospital - RN325"]
[null,null,null,null,null,null,null,null,null,null,null,null,null,null,null,null,null,null,null,null,"QU9","RXQ","BUCKINGHAMSHIRE HEALTHCARE NHS TRUST","RXQ02","Stoke Mandeville Hospital - RXQ02",null,null,null,null,null,null,"RTX02","The James Cook University Hospital - RTRAT"]
[null,null,null,null,null,null,null,null,null,null,null,null,null,null,null,null,null,null,null,null,"QU9","RTH","OXFORD UNIVERSITY HOSPITALS NHS FOUNDATION TRUST","RTH05","Horton General Hospital - RTH05",null,null,null,null,null,null,"RTXBU","The Northumbria - RTF86"]
[null,null,null,null,null,null,null,null,null,null,null,null,null,null,null,null,null,null,null,null,"QU9","RTH","OXFORD UNIVERSITY HOSPITALS NHS FOUNDATION TRUST","RTH08","John Radcliffe Hospital - RTH08",null,null,null,null,null,null,"RTXBW","The Princess Royal Hospital - RXWAT"]
[null,null,null,null,null,null,null,null,null,null,null,null,null,null,null,null,null,null,null,null,"QU9","RHW","ROYAL BERKSHIRE NHS FOUNDATION TRUST","RHW03","King Edward Vii Hospital - RHW03",null,null,null,null,null,null,"RVJ01","The Queen Elizabeth Hospital - RCX70"]
[null,null,null,null,null,null,null,null,null,null,null,null,null,null,null,null,null,null,null,null,"QU9","RHW","ROYAL BERKSHIRE NHS FOUNDATION TRUST","RHW01","Royal Berkshire Hospital - RHW01",null,null,null,null,null,null,"RVR05","The Royal London Hospital - R1H12"]
[null,null,null,null,null,null,null,null,null,null,null,null,null,null,null,null,null,null,null,null,"QUA","RNA","THE DUDLEY GROUP NHS FOUNDATION TRUST","RNA01","Russells Hall Hospital - RNA01",null,null,null,null,null,null,"RVR50","The Royal Victoria Infirmary - RTD02"]
[null,null,null,null,null,null,null,null,null,null,null,null,null,null,null,null,null,null,null,null,"QUA","RBK","WALSALL HEALTHCARE NHS TRUST","RBK02","Manor Hospital - RBK02",null,null,null,null,null,null,"RVV01","The Tunbridge Wells Hospital - RWFTW"]
[null,null,null,null,null,null,null,null,null,null,null,null,null,null,null,null,null,null,null,null,"QUE","RGT","CAMBRIDGE UNIVERSITY HOSPITALS NHS FOUNDATION TRUST","RGT01","Addenbrooke's Hospital - RGT01",null,null,null,null,null,null,"RVV02","The Whittington Hospital - RKEQ4"]
[null,null,null,null,null,null,null,null,null,null,null,null,null,null,null,null,null,null,null,null,"QUE","RGN","NORTH WEST ANGLIA NHS FOUNDATION TRUST","RGN90","Hinchingbrooke Hospital - RGN90",null,null,null,null,null,null,"RVV09","Trafford General Hospital - R0A09"]
[null,null,null,null,null,null,null,null,null,null,null,null,null,null,null,null,null,null,null,null,"QUE","RGN","NORTH WEST ANGLIA NHS FOUNDATION TRUST","RGN80","Peterborough City Hospital - RGN80",null,null,null,null,null,null,"RVVKC","University College Hospital - RRV03"]
[null,null,null,null,null,null,null,null,null,null,null,null,null,null,null,null,null,null,null,null,"QUY","RVJ","NORTH BRISTOL NHS TRUST","RVJ01","Southmead Hospital - RVJ01",null,null,null,null,null,null,"RVWAE","University Dental Hospital - R0A06"]
[null,null,null,null,null,null,null,null,null,null,null,null,null,null,null,null,null,null,null,null,"QUY","RA7","UNIVERSITY HOSPITALS BRISTOL AND WESTON NHS FOUNDATION TRUST","RA708","Bristol Eye Hospital - RA708",null,null,null,null,null,null,"RVY01","University Hospital (Coventry) - RKB01"]
[null,null,null,null,null,null,null,null,null,null,null,null,null,null,null,null,null,null,null,null,"QUY","RA7","UNIVERSITY HOSPITALS BRISTOL AND WESTON NHS FOUNDATION TRUST","RA723","Bristol Royal Hospital For Children - RA723",null,null,null,null,null,null,"RVY02","University Hospital Aintree - REM21"]
[null,null,null,null,null,null,null,null,null,null,null,null,null,null,null,null,null,null,null,null,"QUY","RA7","UNIVERSITY HOSPITALS BRISTOL AND WESTON NHS FOUNDATION TRUST","RA701","Bristol Royal Infirmary - RA701",null,null,null,null,null,null,"RW601","University Hospital Lewisham - RJ224"]
[null,null,null,null,null,null,null,null,null,null,null,null,null,null,null,null,null,null,null,null,"QUY","RA7","UNIVERSITY HOSPITALS BRISTOL AND WESTON NHS FOUNDATION TRUST","RA7C2","Weston General Hospital - RA7C2",null,null,null,null,null,null,"RW602","University Hospital Of North Tees - RVWAE"]
[null,null,null,null,null,null,null,null,null,null,null,null,null,null,null,null,null,null,null,null,"QVV","RBD","DORSET COUNTY HOSPITAL NHS FOUNDATION TRUST","RBD01","Dorset County Hospital - RBD01",null,null,null,null,null,null,"RW603","Warrington Hospital - RWWWH"]
[null,null,null,null,null,null,null,null,null,null,null,null,null,null,null,null,null,null,null,null,"QVV","R0D","UNIVERSITY HOSPITALS DORSET NHS FOUNDATION TRUST","R0D01","Poole Hospital - R0D01",null,null,null,null,null,null,"RW604","Warwick Hospital - RJC02"]
[null,null,null,null,null,null,null,null,null,null,null,null,null,null,null,null,null,null,null,null,"QVV","R0D","UNIVERSITY HOSPITALS DORSET NHS FOUNDATION TRUST","R0D02","Royal Bourenmouth Hospital - R0D02",null,null,null,null,null,null,"RWA01","Watford General Hospital - RWG02"]
[null,null,null,null,null,null,null,null,null,null,null,null,null,null,null,null,null,null,null,null,"QWE","RJ6","CROYDON HEALTH SERVICES NHS TRUST","RJ611","Croydon University Hospital - RJ611",null,null,null,null,null,null,"RWDDA","West Cornwall Hospital (Penzance) - REF01"]
[null,null,null,null,null,null,null,null,null,null,null,null,null,null,null,null,null,null,null,null,"QWE","RVR","EPSOM AND ST HELIER UNIVERSITY HOSPITALS NHS TRUST","RVR50","Epsom Hospital - RVR50",null,null,null,null,null,null,"RWDLA","West Cumberland Hospital - RNNBX"]
[null,null,null,null,null,null,null,null,null,null,null,null,null,null,null,null,null,null,null,null,"QWE","RVR","EPSOM AND ST HELIER UNIVERSITY HOSPITALS NHS TRUST","RVR05","St Helier Hospital - RVR05",null,null,null,null,null,null,"RWDLP","West Middlesex University Hospital - RQM91"]
[null,null,null,null,null,null,null,null,null,null,null,null,null,null,null,null,null,null,null,null,"QWE","RAX","KINGSTON HOSPITAL NHS FOUNDATION TRUST","RAX01","Kingston Hospital - RAX01",null,null,null,null,null,null,"RWEAA","West Suffolk Hospital - RGR50"]
[null,null,null,null,null,null,null,null,null,null,null,null,null,null,null,null,null,null,null,null,"QWE","RAX","KINGSTON HOSPITAL NHS FOUNDATION TRUST","RAXXXX","WiC_MIU - RAXXXX",null,null,null,null,null,null,"RWF03","Western Eye Hospital - RYJ07"]
[null,null,null,null,null,null,null,null,null,null,null,null,null,null,null,null,null,null,null,null,"QWO","RCF","AIREDALE NHS FOUNDATION TRUST","RCF22","Airedale General Hospital - RCF22",null,null,null,null,null,null,"RWFTW","Westmorland General Hospital - RTXBW"]
[null,null,null,null,null,null,null,null,null,null,null,null,null,null,null,null,null,null,null,null,"QWO","RAE","BRADFORD TEACHING HOSPITALS NHS FOUNDATION TRUST","RAE01","Bradford Royal Infirmary - RAE01",null,null,null,null,null,null,"RWFXXX","Weston General Hospital - RA7C2"]
[null,null,null,null,null,null,null,null,null,null,null,null,null,null,null,null,null,null,null,null,"QWO","RWY","CALDERDALE AND HUDDERSFIELD NHS FOUNDATION TRUST","RWY02","Calderdale Royal Hospital - RWY02",null,null,null,null,null,null,"RWG02","Wexham Park Hospital - RDU50"]
[null,null,null,null,null,null,null,null,null,null,null,null,null,null,null,null,null,null,null,null,"QWO","RWY","CALDERDALE AND HUDDERSFIELD NHS FOUNDATION TRUST","RWY01","Huddersfield Royal Infirmary - RWY01",null,null,null,null,null,null,"RWH01","Whipps Cross University Hospital - R1HKH"]
[null,null,null,null,null,null,null,null,null,null,null,null,null,null,null,null,null,null,null,null,"QWO","RR8","LEEDS TEACHING HOSPITALS NHS TRUST","RR801","Leeds General Infirmary - RR801",null,null,null,null,null,null,"RWH20","Whiston Hospital - RBN01"]
[null,null,null,null,null,null,null,null,null,null,null,null,null,null,null,null,null,null,null,null,"QWO","RR8","LEEDS TEACHING HOSPITALS NHS TRUST","RR813","St James's University Hospital - RR813",null,null,null,null,null,null,"RWJ09","Wic MIU - RH5XXX"]
[null,null,null,null,null,null,null,null,null,null,null,null,null,null,null,null,null,null,null,null,"QWO","RXF","MID YORKSHIRE HOSPITALS NHS TRUST","RXF10","Dewsbury and District Hospital - RXF10",null,null,null,null,null,null,"RWP01","WiC_MIU - R0BXXX"]
[null,null,null,null,null,null,null,null,null,null,null,null,null,null,null,null,null,null,null,null,"QWO","RXF","MID YORKSHIRE HOSPITALS NHS TRUST","RXF05","Pinderfields General Hospital - RXF05",null,null,null,null,null,null,"RWP31","WiC_MIU - R1HXXX"]
[null,null,null,null,null,null,null,null,null,null,null,null,null,null,null,null,null,null,null,null,"QWO","RXF","MID YORKSHIRE HOSPITALS NHS TRUST","RXF03","Pontefract General Infirmary - RXF03",null,null,null,null,null,null,"RWP50","WiC_MIU - R1KXXX"]
[null,null,null,null,null,null,null,null,null,null,null,null,null,null,null,null,null,null,null,null,"QWU","RLT","GEORGE ELIOT HOSPITAL NHS TRUST","RLT01","George Eliot Hospital - Acute Services - RLT01",null,null,null,null,null,null,"RWWHG","WiC_MIU - RA2XXX"]
[null,null,null,null,null,null,null,null,null,null,null,null,null,null,null,null,null,null,null,null,"QWU","RJC","SOUTH WARWICKSHIRE NHS FOUNDATION TRUST","RJC02","Warwick Hospital - RJC02",null,null,null,null,null,null,"RWWWH","WiC_MIU - RALXXX"]
[null,null,null,null,null,null,null,null,null,null,null,null,null,null,null,null,null,null,null,null,"QWU","RJC","SOUTH WARWICKSHIRE NHS FOUNDATION TRUST","RJCXXX","WiC_MIU - RJCXXX",null,null,null,null,null,null,"RWY01","WiC_MIU - RAXXXX"]
[null,null,null,null,null,null,null,null,null,null,null,null,null,null,null,null,null,null,null,null,"QWU","RKB","UNIVERSITY HOSPITALS COVENTRY AND WARWICKSHIRE NHS TRUST","RKB03","Hospital Of St Cross - RKB03",null,null,null,null,null,null,"RWY02","WiC_MIU - RBTXXX"]
[null,null,null,null,null,null,null,null,null,null,null,null,null,null,null,null,null,null,null,null,"QWU","RKB","UNIVERSITY HOSPITALS COVENTRY AND WARWICKSHIRE NHS TRUST","RKB01","University Hospital (Coventry) - RKB01",null,null,null,null,null,null,"RX1RA","WiC_MIU - RHUXXX"]
[null,null,null,null,null,null,null,null,null,null,null,null,null,null,null,null,null,null,null,null,"QWU","RKB","UNIVERSITY HOSPITALS COVENTRY AND WARWICKSHIRE NHS TRUST","RKBXXX","WiC_MIU - RKBXXX",null,null,null,null,null,null,"RXC01","WiC_MIU - RJ1XXX"]
[null,null,null,null,null,null,null,null,null,null,null,null,null,null,null,null,null,null,null,null,"QXU","RA2","ROYAL SURREY COUNTY HOSPITAL NHS FOUNDATION TRUST","RA201","Royal Surrey County Hospital - RA201",null,null,null,null,null,null,"RXC02","WiC_MIU - RJCXXX"]
[null,null,null,null,null,null,null,null,null,null,null,null,null,null,null,null,null,null,null,null,"QXU","RA2","ROYAL SURREY COUNTY HOSPITAL NHS FOUNDATION TRUST","RA2XXX","WiC_MIU - RA2XXX",null,null,null,null,null,null,"RXF03","WiC_MIU - RJEXXX"]
[null,null,null,null,null,null,null,null,null,null,null,null,null,null,null,null,null,null,null,null,"QXU","RTP","SURREY AND SUSSEX HEALTHCARE NHS TRUST","RTP04","East Surrey Hospital - RTP04",null,null,null,null,null,null,"RXF05","WiC_MIU - RK5XXX"]
[null,null,null,null,null,null,null,null,null,null,null,null,null,null,null,null,null,null,null,null,"QYG","RBS","ALDER HEY CHILDREN'S NHS FOUNDATION TRUST","RBS25","Alder Hey Children's NHS - RBS25",null,null,null,null,null,null,"RXF10","WiC_MIU - RK9XXX"]
[null,null,null,null,null,null,null,null,null,null,null,null,null,null,null,null,null,null,null,null,"QYG","RJR","COUNTESS OF CHESTER HOSPITAL NHS FOUNDATION TRUST","RJR05","Countess Of Chester Hospital - RJR05",null,null,null,null,null,null,"RXN01","WiC_MIU - RKBXXX"]
[null,null,null,null,null,null,null,null,null,null,null,null,null,null,null,null,null,null,null,null,"QYG","RJN","EAST CHESHIRE NHS TRUST","RJN71","Macclesfield District General Hospital - RJN71",null,null,null,null,null,null,"RXN02","WiC_MIU - RQMXXX"]
[null,null,null,null,null,null,null,null,null,null,null,null,null,null,null,null,null,null,null,null,"QYG","REM","LIVERPOOL UNIVERSITY HOSPITALS NHS FOUNDATION TRUST","REMRQ","Royal Liverpool University Hospital - REMRQ",null,null,null,null,null,null,"RXPXXX","WiC_MIU - RTFXXX"]
[null,null,null,null,null,null,null,null,null,null,null,null,null,null,null,null,null,null,null,null,"QYG","REM","LIVERPOOL UNIVERSITY HOSPITALS NHS FOUNDATION TRUST","REM21","University Hospital Aintree - REM21",null,null,null,null,null,null,"RXQ02","WiC_MIU - RTRXXX"]
[null,null,null,null,null,null,null,null,null,null,null,null,null,null,null,null,null,null,null,null,"QYG","REP","LIVERPOOL WOMEN'S NHS FOUNDATION TRUST","REP01","Liverpool Womens Hospital - REP01",null,null,null,null,null,null,"RXR20","WiC_MIU - RWFXXX"]
[null,null,null,null,null,null,null,null,null,null,null,null,null,null,null,null,null,null,null,null,"QYG","RBT","MID CHESHIRE HOSPITALS NHS FOUNDATION TRUST","RBT20","Leighton Hospital - RBT20",null,null,null,null,null,null,"RXWAS","WiC_MIU - RXPXXX"]
[null,null,null,null,null,null,null,null,null,null,null,null,null,null,null,null,null,null,null,null,"QYG","RBT","MID CHESHIRE HOSPITALS NHS FOUNDATION TRUST","RBTXXX","WiC_MIU - RBTXXX",null,null,null,null,null,null,"RXWAT","WiC_MIU - RYJXXX"]
[null,null,null,null,null,null,null,null,null,null,null,null,null,null,null,null,null,null,null,null,"QYG","RVY","SOUTHPORT AND ORMSKIRK HOSPITAL NHS TRUST","RVY02","Ormskirk and District General Hospital - RVY02",null,null,null,null,null,null,"RYJ01","William Harvey Hospital (Ashford) - RVV01"]
[null,null,null,null,null,null,null,null,null,null,null,null,null,null,null,null,null,null,null,null,"QYG","RVY","SOUTHPORT AND ORMSKIRK HOSPITAL NHS TRUST","RVY01","Southport and Formby District General Hospital - RVY01",null,null,null,null,null,null,"RYJ02","Worcestershire Royal Hospital - RWP50"]
[null,null,null,null,null,null,null,null,null,null,null,null,null,null,null,null,null,null,null,null,"QYG","RBN","ST HELENS AND KNOWSLEY TEACHING HOSPITALS NHS TRUST","RBN01","Whiston Hospital - RBN01",null,null,null,null,null,null,"RYJ07","Worthing Hospital - RYR18"]
[null,null,null,null,null,null,null,null,null,null,null,null,null,null,null,null,null,null,null,null,"QYG","RWW","WARRINGTON AND HALTON TEACHING HOSPITALS NHS FOUNDATION TRUST","RWWHG","Halton Hospital - RWWHG",null,null,null,null,null,null,"RYJXXX","Wythenshawe Hospital - R0A07"]
[null,null,null,null,null,null,null,null,null,null,null,null,null,null,null,null,null,null,null,null,"QYG","RWW","WARRINGTON AND HALTON TEACHING HOSPITALS NHS FOUNDATION TRUST","RWWWH","Warrington Hospital - RWWWH",null,null,null,null,null,null,"RYR16","Yeovil District Hospital - RA430"]
[null,null,null,null,null,null,null,null,null,null,null,null,null,null,null,null,null,null,null,null,"QYG","RBL","WIRRAL UNIVERSITY TEACHING HOSPITAL NHS FOUNDATION TRUST","RBL14","Arrowe Park Hospital - RBL14",null,null,null,null,null,null,"RYR18","York Hospital - RCB55"]